Workbook

Sheet NOVATOS E INTERMEDIOS
C1: PUNTUACION MEJORES CLUBES 2025 FORMATIVO
C2: CLUB | E2: CURSO DE ACREDITACION DE ARBITRAJE QUITO -14 DE DICIEMBRE 2024 | F2: CURSO DE ACREDITACION DE ENTRENADORES QUITO 15-19 DE ENERO 2025 | G2: COPA ALDUPE QUITO 01-02 DE FEBRERO 2025 | H2: OPEN PROVINCIAL NOVATOS INFANTIL A QUITO 01-MARZO-2025 | I2: OPEN PROVINCIAL NOVATOS INFANTIL B QUITO 01-MARZO-2025 | J2: OPEN PROVINCIAL NOVATOS CADETES QUITO 01-MARZO-2025 | K2: OPEN PROVINCIAL NOVATOS JUNIOR QUITO 01-MARZO-2025 | L2: OPEN PROVINCIAL NOVATOS SENIOR Y MASTER QUITO 01-MARZO-2025 | M2: OPEN PROVINCIAL INTERMEDIOS A QUITO 01-MARZ0-2025 | N2: OPEN PROVINCIAL INTERMEDIOS B QUITO 01-MARZ0-2025 | O2: OPEN PROVINCIAL INTERMEDIOS CADETES QUITO 01-MARZ0-2025 | P2: OPEN PROVINCIAL INTERMEDIOS JUNIOR QUITO 01-MARZ0-2025 | Q2: OPEN PROVINCIAL INTERMEDIOS SENIOR Y MSTER QUITO 01-MARZ0-2025 | R2: OPEN PROVINCIAL POOMSAE NOVATOS E INTERMEDIOS´´ A ´´QUITO 01-MARZ0-2025 | S2: OPEN PROVINCIAL POOMSAE NOVATOS E INTERMEDIOS´´ B´´ QUITO 01-MARZ0-2025 | T2: OPEN PROVINCIAL POOMSAE NOVATOS E INTERMEDIOS CADETES QUITO 01-MARZ0-2025 | U2: OPEN PROVINCIAL POOMSAE NOVATOS E INTERMEDIOS JUNIOR QUITO 01-MARZ0-2025 | V2: OPEN PROVINCIAL POOMSAE NOVATOS E INTERMEDIOS SENIOR QUITO 01-MARZ0-2025 | W2: COPA YONG TIGER QUITO 22 DE MARZO DEL 2025 | X2: FESTIVAL DE HABILIDADES MOTRICES 05 DE ABRIL DEL 2025 | Y2: COPA DECIAP QUITO 19 DE ABRIL DEL 2025 | Z2: COPA TOTAL KOMBAT QUITO 25 DE MAYO DEL 2025 | AA2: OPEN PROVINCIAL NOVATOS INFANTIL A QUITO 05-06 DE JULIO-2025 | AB2: OPEN PROVINCIAL NOVATOS INFANTIL B QUITO 05-06 DE JULIO-2025 | AC2: OPEN PROVINCIAL NOVATOS CADETES QUITO 05-06 DE JULIO2025 | AD2: OPEN PROVINCIAL NOVATOS JUNIOR QUITO 05-06 DE JULIO 2025 | AE2: OPEN PROVINCIAL NOVATOS SENIOR Y MASTER QUITO 05-06 DE JULIO2025 | AF2: OPEN PROVINCIAL INTERMEDIOS A QUITO 05-06 DE JULIO 2025 | AG2: OPEN PROVINCIAL INTERMEDIOS B QUITO 05-06 DE JULIO 2025 | AH2: OPEN PROVINCIAL INTERMEDIOS CADETES QUITO 05 06 DE JULIO 2025 | AI2: OPEN PROVINCIAL INTERMEDIOS JUNIOR QUITO 05-06 DE JULIO 2025 | AJ2: OPEN PROVINCIAL INTERMEDIOS SENIOR Y MSTER QUITO 05-06 DE JULIO 2025 | AK2: OPEN PROVINCIAL POOMSAE NOVATOS E INTERMEDIOS´´ A ´´QUITO 05-06 DE JULIO 2025 | AL2: OPEN PROVINCIAL POOMSAE NOVATOS E INTERMEDIOS´´ B´´ QUITO 05-06 DE JULIO 2025 | AM2: OPEN PROVINCIAL POOMSAE NOVATOS E INTERMEDIOS CADETES QUITO 05-06 DE JULIO 2025 | AN2: OPEN PROVINCIAL POOMSAE NOVATOS E INTERMEDIOS JUNIOR QUITO 05-06 DE JULIO 2025 | AO2: OPEN PROVINCIAL POOMSAE NOVATOS E INTERMEDIOS SENIOR QUITO 05-06 JULIO 2025 | AP2: CURSO DE ACTUALIZACION DE ARBITRAJE QUITO 18-19 DE JULIO DEL 2025 | AQ2: OPEN HAGMADANG QUTIO 08 DE AGOSTO DEL 2025 | AR2: COPA SEUL QUITO 17 DE AGOSTO DEL 2025 | CD2: PUNTAJE TOTAL | CE2: UBICACIÓN | CF2: CLUB | CG2: PUNTAJE
A3: -1e-08 | B3: =_xlfn.RANK.AVG(D3,$D$3:$D$103,0) -> 4 | C3: APOLO | D3: =CD3+A3*ROW() -> 229 | E3: 0 | F3: 20 | G3: 5 | H3: 0 | I3: 0 | J3: 0 | K3: 0 | L3: 0 | M3: 0 | N3: 0 | O3: 0 | P3: 0 | Q3: 0 | R3: 17 | S3: 25 | T3: 14 | U3: 3 | V3: 0 | W3: 5 | X3: 26 | Y3: 0 | Z3: 5 | AA3: 7 | AB3: 0 | AC3: 0 | AD3: 0 | AE3: 0 | AF3: 0 | AG3: 0 | AH3: 0 | AI3: 0 | AJ3: 0 | AK3: 25 | AL3: 20 | AM3: 14 | AN3: 1 | AO3: 25 | AP3: 12 | AQ3: 0 | AR3: 5 | CD3: =SUM(E3:CC3) -> 229 | CE3: 1 | CF3: =VLOOKUP(CE3,'NOVATOS E INTERMEDIOS'!$B$3:$C$103,2,FALSE) -> BAEKJUL BG | CG3: =VLOOKUP(CF3,'NOVATOS E INTERMEDIOS'!$C$3:$CD$103,2,FALSE) -> 354
A4: -2e-08 | B4: 10 | C4: ARES | D4: 139 | E4: 6 | F4: 22 | G4: 5 | H4: 0 | I4: 0 | J4: 0 | K4: 0 | L4: 0 | M4: 0 | N4: 0 | O4: 0 | P4: 0 | Q4: 14 | R4: 0 | S4: 0 | T4: 0 | U4: 17 | V4: 0 | W4: 0 | X4: 18 | Y4: 5 | Z4: 5 | AA4: 0 | AB4: 0 | AC4: 7 | AD4: 7 | AE4: 11 | AF4: 0 | AH4: 0 | AI4: 0 | AJ4: 0 | AK4: 0 | AL4: 0 | AM4: 0 | AN4: 0 | AO4: 1 | AP4: 2 | AQ4: 14 | AR4: 5 | CD4: 139 | CE4: =CE3+1 -> 2 | CF4: =VLOOKUP(CE4,'NOVATOS E INTERMEDIOS'!$B$3:$C$103,2,FALSE) -> S.D.CENTRAL | CG4: =VLOOKUP(CF4,'NOVATOS E INTERMEDIOS'!$C$3:$CD$103,2,FALSE) -> 284
A5: -3e-08 | B5: 32 | C5: ATLAS CLUB | D5: 50 | E5: 4 | F5: 4 | G5: 0 | H5: 0 | I5: 0 | J5: 0 | K5: 0 | L5: 0 | M5: 0 | N5: 0 | O5: 1 | P5: 14 | Q5: 0 | R5: 0 | S5: 0 | T5: 0 | U5: 0 | V5: 0 | W5: 0 | X5: 0 | Y5: 0 | Z5: 0 | AA5: 0 | AB5: 0 | AC5: 0 | AD5: 0 | AE5: 0 | AF5: 0 | AG5: 0 | AH5: 0 | AI5: 17 | AJ5: 0 | AK5: 0 | AL5: 0 | AM5: 0 | AN5: 0 | AO5: 0 | AP5: 10 | AQ5: 0 | AR5: 0 | CD5: 50 | CE5: 3 | CF5: =VLOOKUP(CE5,'NOVATOS E INTERMEDIOS'!$B$3:$C$103,2,FALSE) -> DEBAK TKD | CG5: =VLOOKUP(CF5,'NOVATOS E INTERMEDIOS'!$C$3:$CD$103,2,FALSE) -> 249
A6: -4e-08 | B6: 1 | C6: BAEKJUL BG | D6: 354 | E6: 8 | F6: 14 | G6: 5 | H6: 25 | I6: 11 | J6: 20 | K6: 0 | L6: 0 | M6: 17 | N6: 0 | O6: 0 | P6: 17 | Q6: 0 | R6: 0 | S6: 0 | T6: 25 | U6: 0 | V6: 0 | W6: 0 | X6: 58 | Y6: 0 | Z6: 5 | AA6: 25 | AB6: 20 | AC6: 0 | AD6: 0 | AE6: 0 | AF6: 25 | AG6: 0 | AH6: 0 | AI6: 0 | AJ6: 0 | AK6: 0 | AL6: 0 | AM6: 20 | AN6: 0 | AO6: 20 | AP6: 34 | AQ6: 0 | AR6: 5 | CD6: 354 | CE6: 4 | CF6: =VLOOKUP(CE6,'NOVATOS E INTERMEDIOS'!$B$3:$C$103,2,FALSE) -> APOLO | CG6: =VLOOKUP(CF6,'NOVATOS E INTERMEDIOS'!$C$3:$CD$103,2,FALSE) -> 229
A7: -5e-08 | B7: 21 | C7: BAS PANTHER | D7: 88 | E7: 18 | F7: 14 | G7: 5 | H7: 7 | I7: 0 | J7: 0 | K7: 0 | L7: 0 | M7: 0 | N7: 0 | O7: 0 | P7: 0 | Q7: 0 | R7: 0 | S7: 0 | T7: 0 | U7: 1 | V7: 0 | W7: 0 | X7: 20 | Y7: 5 | Z7: 5 | AA7: 3 | AB7: 0 | AC7: 0 | AD7: 0 | AE7: 0 | AF7: 0 | AG7: 0 | AH7: 0 | AI7: 0 | AJ7: 0 | AK7: 0 | AL7: 0 | AM7: 0 | AN7: 0 | AO7: 0 | AP7: 10 | AQ7: 0 | AR7: 0 | CD7: 88 | CE7: 5 | CF7: =VLOOKUP(CE7,'NOVATOS E INTERMEDIOS'!$B$3:$C$103,2,FALSE) -> JOSEON LEGACY | CG7: =VLOOKUP(CF7,'NOVATOS E INTERMEDIOS'!$C$3:$CD$103,2,FALSE) -> 211
A8: -6e-08 | B8: 18 | C8: BORJA´S LIONS | D8: 105 | E8: 0 | F8: 16 | G8: 0 | H8: 0 | I8: 0 | J8: 0 | K8: 0 | L8: 0 | M8: 0 | N8: 0 | O8: 0 | P8: 0 | Q8: 0 | R8: 0 | S8: 0 | T8: 0 | U8: 0 | V8: 0 | W8: 0 | X8: 0 | Y8: 0 | Z8: 5 | AA8: 0 | AB8: 0 | AC8: 0 | AD8: 0 | AE8: 7 | AF8: 11 | AG8: 14 | AH8: 0 | AI8: 11 | AJ8: 0 | AK8: 11 | AL8: 25 | AM8: 3 | AN8: 0 | AO8: 0 | AP8: 2 | AQ8: 0 | AR8: 0 | CD8: 105 | CE8: 6 | CF8: =VLOOKUP(CE8,'NOVATOS E INTERMEDIOS'!$B$3:$C$103,2,FALSE) -> TOTAL KOMBAT | CG8: =VLOOKUP(CF8,'NOVATOS E INTERMEDIOS'!$C$3:$CD$103,2,FALSE) -> 191
A9: -7e-08 | B9: 14 | C9: BLUE DRAGONS | D9: 123 | E9: 0 | F9: 16 | G9: 5 | H9: 3 | I9: 1 | J9: 0 | K9: 0 | L9: 0 | M9: 14 | N9: 14 | O9: 25 | P9: 0 | Q9: 0 | R9: 0 | S9: 0 | T9: 0 | U9: 0 | V9: 0 | W9: 5 | X9: 0 | Y9: 0 | Z9: 0 | AA9: 0 | AB9: 0 | AC9: 0 | AD9: 0 | AE9: 0 | AF9: 14 | AG9: 1 | AH9: 7 | AI9: 0 | AJ9: 0 | AK9: 0 | AL9: 0 | AM9: 0 | AN9: 0 | AO9: 0 | AP9: 18 | AQ9: 0 | AR9: 0 | CD9: 123 | CE9: 7 | CF9: =VLOOKUP(CE9,'NOVATOS E INTERMEDIOS'!$B$3:$C$103,2,FALSE) -> MERCENARIOS | CG9: =VLOOKUP(CF9,'NOVATOS E INTERMEDIOS'!$C$3:$CD$103,2,FALSE) -> 186
A10: -8e-08 | B10: 41 | C10: CIUDAD DE QUITO | D10: 33 | E10: 0 | F10: 6 | G10: 5 | H10: 0 | I10: 0 | J10: 0 | K10: 0 | L10: 0 | M10: 0 | N10: 0 | O10: 0 | P10: 0 | Q10: 0 | R10: 0 | S10: 0 | T10: 0 | U10: 0 | V10: 0 | W10: 0 | X10: 4 | Y10: 0 | Z10: 0 | AA10: 0 | AB10: 0 | AC10: 0 | AD10: 0 | AE10: 0 | AF10: 0 | AG10: 0 | AH10: 14 | AI10: 0 | AJ10: 0 | AK10: 0 | AL10: 0 | AM10: 0 | AN10: 0 | AO10: 0 | AP10: 4 | AQ10: 0 | AR10: 0 | CD10: 33 | CE10: 8 | CF10: =VLOOKUP(CE10,'NOVATOS E INTERMEDIOS'!$B$3:$C$103,2,FALSE) -> LOS PUMAS | CG10: =VLOOKUP(CF10,'NOVATOS E INTERMEDIOS'!$C$3:$CD$103,2,FALSE) -> 160
A11: -9e-08 | B11: 78 | C11: CONDOR | D11: 4 | E11: 0 | F11: 4 | G11: 0 | H11: 0 | I11: 0 | J11: 0 | K11: 0 | L11: 0 | M11: 0 | N11: 0 | O11: 0 | P11: 0 | Q11: 0 | R11: 0 | S11: 0 | T11: 0 | U11: 0 | V11: 0 | W11: 0 | X11: 0 | Y11: 0 | Z11: 0 | AA11: 0 | AB11: 0 | AC11: 0 | AD11: 0 | AE11: 0 | AF11: 0 | AG11: 0 | AH11: 0 | AI11: 0 | AJ11: 0 | AK11: 0 | AL11: 0 | AM11: 0 | AN11: 0 | AO11: 0 | AP11: 0 | AQ11: 0 | AR11: 0 | CD11: 4 | CE11: 9 | CF11: =VLOOKUP(CE11,'NOVATOS E INTERMEDIOS'!$B$3:$C$103,2,FALSE) -> KO AMERICA | CG11: =VLOOKUP(CF11,'NOVATOS E INTERMEDIOS'!$C$3:$CD$103,2,FALSE) -> 143
A12: -1e-07 | B12: 85 | C12: CLUB MIKIDO | D12: 2 | E12: 0 | F12: 2 | G12: 0 | H12: 0 | I12: 0 | J12: 0 | K12: 0 | L12: 0 | M12: 0 | N12: 0 | O12: 0 | P12: 0 | Q12: 0 | R12: 0 | S12: 0 | T12: 0 | U12: 0 | V12: 0 | W12: 0 | X12: 0 | Y12: 0 | Z12: 0 | AA12: 0 | AB12: 0 | AC12: 0 | AD12: 0 | AE12: 0 | AF12: 0 | AG12: 0 | AH12: 0 | AI12: 0 | AJ12: 0 | AK12: 0 | AL12: 0 | AM12: 0 | AN12: 0 | AO12: 0 | AP12: 0 | AQ12: 0 | AR12: 0 | CD12: 2 | CE12: 10 | CF12: =VLOOKUP(CE12,'NOVATOS E INTERMEDIOS'!$B$3:$C$103,2,FALSE) -> ARES | CG12: =VLOOKUP(CF12,'NOVATOS E INTERMEDIOS'!$C$3:$CD$103,2,FALSE) -> 139
A13: -1.1e-07 | B13: 95 | C13: CHEN HUU | D13: -0 | E13: 0 | F13: 0 | G13: 0 | H13: 0 | I13: 0 | J13: 0 | K13: 0 | L13: 0 | M13: 0 | N13: 0 | O13: 0 | P13: 0 | Q13: 0 | R13: 0 | S13: 0 | T13: 0 | U13: 0 | V13: 0 | W13: 0 | X13: 0 | Y13: 0 | Z13: 0 | AA13: 0 | AB13: 0 | AC13: 0 | AD13: 0 | AE13: 0 | AF13: 0 | AG13: 0 | AH13: 0 | AI13: 0 | AJ13: 0 | AK13: 0 | AL13: 0 | AM13: 0 | AN13: 0 | AO13: 0 | AP13: 0 | AQ13: 0 | AR13: 0 | CD13: 0 | CE13: 11 | CF13: =VLOOKUP(CE13,'NOVATOS E INTERMEDIOS'!$B$3:$C$103,2,FALSE) -> SEUL | CG13: =VLOOKUP(CF13,'NOVATOS E INTERMEDIOS'!$C$3:$CD$103,2,FALSE) -> 137
A14: -1.2e-07 | B14: 55 | C14: CHONKWON | D14: 20 | E14: 0 | F14: 0 | G14: 0 | H14: 0 | I14: 0 | J14: 0 | K14: 0 | L14: 0 | M14: 0 | N14: 0 | O14: 0 | P14: 0 | Q14: 20 | R14: 0 | S14: 0 | T14: 0 | U14: 0 | V14: 0 | W14: 0 | X14: 0 | Y14: 0 | Z14: 0 | AA14: 0 | AB14: 0 | AC14: 0 | AD14: 0 | AE14: 0 | AF14: 0 | AG14: 0 | AH14: 0 | AI14: 0 | AJ14: 0 | AK14: 0 | AL14: 0 | AM14: 0 | AN14: 0 | AO14: 0 | AP14: 0 | AQ14: 0 | AR14: 0 | CD14: 20 | CE14: 12 | CF14: =VLOOKUP(CE14,'NOVATOS E INTERMEDIOS'!$B$3:$C$103,2,FALSE) -> CHUNG SONG | CG14: =VLOOKUP(CF14,'NOVATOS E INTERMEDIOS'!$C$3:$CD$103,2,FALSE) -> 135
A15: -1.3e-07 | B15: 12 | C15: CHUNG SONG | D15: 135 | E15: 4 | F15: 6 | G15: 5 | H15: 0 | I15: 17 | J15: 25 | K15: 0 | L15: 0 | M15: 0 | N15: 0 | O15: 0 | P15: 0 | Q15: 0 | R15: 0 | S15: 14 | T15: 0 | U15: 0 | V15: 0 | W15: 0 | X15: 0 | Y15: 5 | Z15: 0 | AA15: 0 | AB15: 25 | AC15: 0 | AD15: 17 | AE15: 0 | AF15: 0 | AG15: 7 | AH15: 0 | AI15: 0 | AJ15: 0 | AK15: 0 | AL15: 0 | AM15: 0 | AN15: 0 | AO15: 0 | AP15: 10 | AQ15: 0 | AR15: 0 | CD15: 135 | CE15: 13 | CF15: =VLOOKUP(CE15,'NOVATOS E INTERMEDIOS'!$B$3:$C$103,2,FALSE) -> LEON | CG15: =VLOOKUP(CF15,'NOVATOS E INTERMEDIOS'!$C$3:$CD$103,2,FALSE) -> 128
A16: -1.4e-07 | B16: 15 | C16: CHAMPIONS FOR LIFE | D16: 123 | E16: 2 | F16: 6 | G16: 5 | H16: 0 | I16: 0 | J16: 0 | K16: 0 | L16: 0 | M16: 11 | N16: 0 | O16: 0 | P16: 0 | Q16: 17 | R16: 25 | S16: 3 | T16: 0 | U16: 0 | V16: 0 | W16: 5 | X16: 8 | Y16: 5 | Z16: 5 | AA16: 0 | AB16: 0 | AC16: 0 | AD16: 0 | AE16: 0 | AF16: 0 | AG16: 0 | AH16: 0 | AI16: 0 | AJ16: 11 | AK16: 0 | AL16: 14 | AM16: 0 | AN16: 0 | AO16: 0 | AP16: 6 | AQ16: 0 | AR16: 0 | CD16: 123 | CE16: 14 | CF16: =VLOOKUP(CE16,'NOVATOS E INTERMEDIOS'!$B$3:$C$103,2,FALSE) -> BLUE DRAGONS | CG16: =VLOOKUP(CF16,'NOVATOS E INTERMEDIOS'!$C$3:$CD$103,2,FALSE) -> 123
A17: -1.5e-07 | B17: 72 | C17: DAIGORO | D17: 6 | E17: 0 | F17: 6 | G17: 0 | H17: 0 | I17: 0 | J17: 0 | K17: 0 | L17: 0 | M17: 0 | N17: 0 | O17: 0 | P17: 0 | Q17: 0 | R17: 0 | S17: 0 | T17: 0 | U17: 0 | V17: 0 | W17: 0 | X17: 0 | Y17: 0 | Z17: 0 | AA17: 0 | AB17: 0 | AC17: 0 | AD17: 0 | AE17: 0 | AF17: 0 | AG17: 0 | AH17: 0 | AI17: 0 | AJ17: 0 | AK17: 0 | AL17: 0 | AM17: 0 | AN17: 0 | AO17: 0 | AP17: 0 | AQ17: 0 | AR17: 0 | CD17: 6 | CE17: 15 | CF17: =VLOOKUP(CE17,'NOVATOS E INTERMEDIOS'!$B$3:$C$103,2,FALSE) -> CHAMPIONS FOR LIFE | CG17: =VLOOKUP(CF17,'NOVATOS E INTERMEDIOS'!$C$3:$CD$103,2,FALSE) -> 123
A18: -1.6e-07 | B18: 3 | C18: DEBAK TKD | D18: 249 | E18: 0 | F18: 32 | G18: 5 | H18: 1 | I18: 20 | J18: 11 | K18: 7 | L18: 17 | M18: 0 | N18: 11 | O18: 0 | P18: 1 | Q18: 0 | R18: 0 | S18: 17 | T18: 17 | U18: 11 | V18: 0 | W18: 5 | X18: 20 | Y18: 0 | Z18: 5 | AA18: 0 | AB18: 0 | AC18: 0 | AD18: 0 | AE18: 1 | AF18: 0 | AG18: 0 | AH18: 11 | AI18: 0 | AJ18: 0 | AK18: 0 | AL18: 17 | AM18: 17 | AN18: 0 | AO18: 11 | AP18: 12 | AQ18: 0 | AR18: 0 | CD18: 249 | CE18: 16 | CF18: =VLOOKUP(CE18,'NOVATOS E INTERMEDIOS'!$B$3:$C$103,2,FALSE) -> HAN KUM DO | CG18: =VLOOKUP(CF18,'NOVATOS E INTERMEDIOS'!$C$3:$CD$103,2,FALSE) -> 119
A19: -1.7e-07 | B19: 47 | C19: DECIAP | D19: 29 | E19: 0 | F19: 14 | G19: 5 | H19: 0 | I19: 0 | J19: 0 | K19: 0 | L19: 0 | M19: 0 | N19: 0 | O19: 0 | P19: 0 | Q19: 0 | R19: 0 | S19: 0 | T19: 0 | U19: 0 | V19: 0 | W19: 5 | X19: 0 | Y19: 5 | Z19: 0 | AA19: 0 | AB19: 0 | AC19: 0 | AD19: 0 | AE19: 0 | AF19: 0 | AG19: 0 | AH19: 0 | AI19: 0 | AJ19: 0 | AK19: 0 | AL19: 0 | AM19: 0 | AN19: 0 | AO19: 0 | AP19: 0 | AQ19: 0 | AR19: 0 | CD19: 29 | CE19: 17 | CF19: =VLOOKUP(CE19,'NOVATOS E INTERMEDIOS'!$B$3:$C$103,2,FALSE) -> TAEKWONDO TRAINING CENTER | CG19: =VLOOKUP(CF19,'NOVATOS E INTERMEDIOS'!$C$3:$CD$103,2,FALSE) -> 109
A20: -1.8e-07 | B20: 25 | C20: DOJAN TAEKWONDO MELO | D20: 65 | E20: 4 | F20: 4 | G20: 0 | H20: 0 | I20: 0 | J20: 0 | K20: 0 | L20: 0 | M20: 0 | N20: 0 | O20: 0 | P20: 0 | Q20: 0 | R20: 0 | S20: 20 | T20: 11 | U20: 0 | V20: 0 | W20: 0 | X20: 0 | Y20: 0 | Z20: 0 | AA20: 0 | AB20: 0 | AC20: 0 | AD20: 0 | AE20: 0 | AF20: 0 | AG20: 0 | AH20: 0 | AI20: 0 | AJ20: 0 | AK20: 7 | AL20: 3 | AM20: 11 | AN20: 3 | AO20: 0 | AP20: 2 | AQ20: 0 | AR20: 0 | CD20: 65 | CE20: 18 | CF20: =VLOOKUP(CE20,'NOVATOS E INTERMEDIOS'!$B$3:$C$103,2,FALSE) -> BORJA´S LIONS | CG20: =VLOOKUP(CF20,'NOVATOS E INTERMEDIOS'!$C$3:$CD$103,2,FALSE) -> 105
A21: -1.9e-07 | B21: 31 | C21: DRACO | D21: 54 | E21: 0 | F21: 8 | G21: 5 | H21: 0 | I21: 0 | J21: 0 | K21: 0 | L21: 0 | M21: 0 | N21: 0 | O21: 0 | P21: 0 | Q21: 0 | R21: 0 | S21: 0 | T21: 0 | U21: 0 | V21: 0 | W21: 5 | X21: 16 | Y21: 0 | Z21: 0 | AA21: 0 | AB21: 0 | AC21: 0 | AD21: 0 | AE21: 0 | AF21: 0 | AG21: 20 | AH21: 0 | AI21: 0 | AJ21: 0 | AK21: 0 | AL21: 0 | AM21: 0 | AN21: 0 | AO21: 0 | AP21: 0 | AQ21: 0 | AR21: 0 | CD21: 54 | CE21: 19 | CF21: =VLOOKUP(CE21,'NOVATOS E INTERMEDIOS'!$B$3:$C$103,2,FALSE) -> PYONG YANG | CG21: =VLOOKUP(CF21,'NOVATOS E INTERMEDIOS'!$C$3:$CD$103,2,FALSE) -> 99
A22: -2e-07 | B22: 50 | C22: DRAGON GYM | D22: 23 | E22: 0 | F22: 6 | G22: 5 | H22: 0 | I22: 0 | J22: 0 | K22: 0 | L22: 0 | M22: 7 | N22: 0 | O22: 0 | P22: 0 | Q22: 0 | R22: 0 | S22: 0 | T22: 0 | U22: 0 | V22: 0 | W22: 0 | X22: 0 | Y22: 0 | Z22: 5 | AA22: 0 | AB22: 0 | AC22: 0 | AD22: 0 | AE22: 0 | AF22: 0 | AG22: 0 | AH22: 0 | AI22: 0 | AJ22: 0 | AK22: 0 | AL22: 0 | AM22: 0 | AN22: 0 | AO22: 0 | AP22: 0 | AQ22: 0 | AR22: 0 | CD22: 23 | CE22: 20 | CF22: =VLOOKUP(CE22,'NOVATOS E INTERMEDIOS'!$B$3:$C$103,2,FALSE) -> MINOTAUROS | CG22: =VLOOKUP(CF22,'NOVATOS E INTERMEDIOS'!$C$3:$CD$103,2,FALSE) -> 89
A23: -2.1e-07 | B23: 86 | C23: DRAGON LEE GYM | D23: 2 | E23: 0 | F23: 2 | G23: 0 | H23: 0 | I23: 0 | J23: 0 | K23: 0 | L23: 0 | M23: 0 | N23: 0 | O23: 0 | P23: 0 | Q23: 0 | R23: 0 | S23: 0 | T23: 0 | U23: 0 | V23: 0 | W23: 0 | X23: 0 | Y23: 0 | Z23: 0 | AA23: 0 | AB23: 0 | AC23: 0 | AD23: 0 | AE23: 0 | AF23: 0 | AG23: 0 | AH23: 0 | AI23: 0 | AJ23: 0 | AK23: 0 | AL23: 0 | AM23: 0 | AN23: 0 | AO23: 0 | AP23: 0 | AQ23: 0 | AR23: 0 | CD23: 2 | CE23: 21 | CF23: =VLOOKUP(CE23,'NOVATOS E INTERMEDIOS'!$B$3:$C$103,2,FALSE) -> BAS PANTHER | CG23: =VLOOKUP(CF23,'NOVATOS E INTERMEDIOS'!$C$3:$CD$103,2,FALSE) -> 88
A24: -2.2e-07 | B24: 24 | C24: ECUACUBA | D24: 74 | E24: 4 | F24: 8 | G24: 5 | H24: 0 | I24: 0 | J24: 0 | K24: 0 | L24: 0 | M24: 0 | N24: 0 | O24: 0 | P24: 0 | Q24: 0 | R24: 0 | S24: 0 | T24: 0 | U24: 0 | V24: 0 | W24: 5 | X24: 0 | Y24: 0 | Z24: 5 | AA24: 0 | AB24: 0 | AC24: 0 | AD24: 3 | AE24: 0 | AF24: 3 | AG24: 0 | AH24: 0 | AI24: 0 | AJ24: 17 | AK24: 17 | AL24: 0 | AM24: 0 | AN24: 7 | AO24: 0 | AP24: 0 | AQ24: 0 | AR24: 0 | CD24: 74 | CE24: 22 | CF24: =VLOOKUP(CE24,'NOVATOS E INTERMEDIOS'!$B$3:$C$103,2,FALSE) -> SURYUN | CG24: =VLOOKUP(CF24,'NOVATOS E INTERMEDIOS'!$C$3:$CD$103,2,FALSE) -> 85
A25: -2.3e-07 | B25: 33 | C25: ECUADOR | D25: 49 | E25: 0 | F25: 20 | G25: 0 | H25: 0 | I25: 0 | J25: 0 | K25: 0 | L25: 0 | M25: 0 | N25: 0 | O25: 0 | P25: 0 | Q25: 0 | R25: 0 | S25: 0 | T25: 0 | U25: 0 | V25: 0 | W25: 0 | X25: 0 | Y25: 0 | Z25: 0 | AA25: 0 | AB25: 0 | AC25: 0 | AD25: 0 | AE25: 0 | AF25: 0 | AG25: 0 | AH25: 0 | AI25: 0 | AJ25: 0 | AK25: 0 | AL25: 0 | AM25: 0 | AN25: 0 | AO25: 7 | AP25: 22 | AQ25: 0 | AR25: 0 | CD25: 49 | CE25: 23 | CF25: =VLOOKUP(CE25,'NOVATOS E INTERMEDIOS'!$B$3:$C$103,2,FALSE) -> ESPE | CG25: =VLOOKUP(CF25,'NOVATOS E INTERMEDIOS'!$C$3:$CD$103,2,FALSE) -> 76
A26: -2.4e-07 | B26: 62 | C26: EQUILIBRIO | D26: 15 | E26: 4 | F26: 6 | G26: 0 | H26: 0 | I26: 0 | J26: 0 | K26: 0 | L26: 0 | M26: 0 | N26: 0 | O26: 0 | P26: 0 | Q26: 3 | R26: 0 | S26: 0 | T26: 0 | U26: 0 | V26: 0 | W26: 0 | X26: 0 | Y26: 0 | Z26: 0 | AA26: 0 | AB26: 0 | AC26: 0 | AD26: 0 | AE26: 0 | AF26: 0 | AG26: 0 | AH26: 0 | AI26: 0 | AJ26: 0 | AK26: 0 | AL26: 0 | AM26: 0 | AN26: 0 | AO26: 0 | AP26: 2 | AQ26: 0 | AR26: 0 | CD26: 15 | CE26: 24 | CF26: =VLOOKUP(CE26,'NOVATOS E INTERMEDIOS'!$B$3:$C$103,2,FALSE) -> ECUACUBA | CG26: =VLOOKUP(CF26,'NOVATOS E INTERMEDIOS'!$C$3:$CD$103,2,FALSE) -> 74
A27: -2.5e-07 | B27: 23 | C27: ESPE | D27: 76 | E27: 2 | F27: 20 | G27: 0 | H27: 0 | I27: 0 | J27: 0 | K27: 0 | L27: 0 | M27: 0 | N27: 0 | O27: 0 | P27: 0 | Q27: 25 | R27: 0 | S27: 0 | T27: 0 | U27: 0 | V27: 0 | W27: 0 | X27: 0 | Y27: 5 | Z27: 0 | AA27: 0 | AB27: 0 | AC27: 0 | AD27: 0 | AE27: 17 | AF27: 0 | AG27: 0 | AH27: 0 | AI27: 0 | AJ27: 1 | AK27: 0 | AL27: 0 | AM27: 0 | AN27: 0 | AO27: 0 | AP27: 6 | AQ27: 0 | AR27: 0 | CD27: 76 | CE27: 25 | CF27: =VLOOKUP(CE27,'NOVATOS E INTERMEDIOS'!$B$3:$C$103,2,FALSE) -> DOJAN TAEKWONDO MELO | CG27: =VLOOKUP(CF27,'NOVATOS E INTERMEDIOS'!$C$3:$CD$103,2,FALSE) -> 65
A28: -2.6e-07 | B28: 73 | C28: FRANG | D28: 6 | E28: 0 | F28: 2 | G28: 0 | H28: 0 | I28: 0 | J28: 0 | K28: 0 | L28: 0 | M28: 0 | N28: 0 | O28: 0 | P28: 0 | Q28: 0 | R28: 0 | S28: 0 | T28: 0 | U28: 0 | V28: 0 | W28: 0 | X28: 2 | Y28: 0 | Z28: 0 | AA28: 0 | AB28: 0 | AC28: 0 | AD28: 0 | AE28: 0 | AF28: 0 | AG28: 0 | AH28: 0 | AI28: 0 | AJ28: 0 | AK28: 0 | AL28: 0 | AM28: 0 | AN28: 0 | AO28: 0 | AP28: 2 | AQ28: 0 | AR28: 0 | CD28: 6 | CE28: 26 | CF28: =VLOOKUP(CE28,'NOVATOS E INTERMEDIOS'!$B$3:$C$103,2,FALSE) -> KUKKIKWON | CG28: =VLOOKUP(CF28,'NOVATOS E INTERMEDIOS'!$C$3:$CD$103,2,FALSE) -> 61
A29: -2.7e-07 | B29: 69 | C29: FIT KWON DO | D29: 9 | E29: 0 | F29: 4 | G29: 0 | H29: 0 | I29: 0 | J29: 0 | K29: 0 | L29: 0 | M29: 0 | N29: 0 | O29: 0 | P29: 0 | Q29: 0 | R29: 0 | S29: 0 | T29: 0 | U29: 0 | V29: 0 | W29: 0 | X29: 0 | Y29: 0 | Z29: 5 | AA29: 0 | AB29: 0 | AC29: 0 | AD29: 0 | AE29: 0 | AF29: 0 | AG29: 0 | AH29: 0 | AI29: 0 | AJ29: 0 | AK29: 0 | AL29: 0 | AM29: 0 | AN29: 0 | AO29: 0 | AP29: 0 | AQ29: 0 | AR29: 0 | CD29: 9 | CE29: 27 | CF29: =VLOOKUP(CE29,'NOVATOS E INTERMEDIOS'!$B$3:$C$103,2,FALSE) -> KYORUGUI GYM | CG29: =VLOOKUP(CF29,'NOVATOS E INTERMEDIOS'!$C$3:$CD$103,2,FALSE) -> 61
A30: -2.8e-07 | B30: 57 | C30: FIRST CLASS CALDERON | D30: 18 | E30: 0 | F30: 6 | G30: 0 | H30: 0 | I30: 0 | J30: 0 | K30: 0 | L30: 0 | M30: 0 | N30: 0 | O30: 0 | P30: 0 | Q30: 0 | R30: 0 | S30: 0 | T30: 0 | U30: 0 | V30: 0 | W30: 5 | X30: 0 | Y30: 0 | Z30: 5 | AA30: 0 | AB30: 0 | AC30: 0 | AD30: 0 | AE30: 0 | AF30: 0 | AG30: 0 | AH30: 0 | AI30: 0 | AJ30: 0 | AK30: 0 | AL30: 0 | AM30: 0 | AN30: 0 | AO30: 0 | AP30: 2 | AQ30: 0 | AR30: 0 | CD30: 18 | CE30: 28 | CF30: =VLOOKUP(CE30,'NOVATOS E INTERMEDIOS'!$B$3:$C$103,2,FALSE) -> TAE BAEK ECUADOR JR | CG30: =VLOOKUP(CF30,'NOVATOS E INTERMEDIOS'!$C$3:$CD$103,2,FALSE) -> 59
A31: -2.9e-07 | B31: 45 | C31: FURIA NEGRA | D31: 31 | E31: 0 | F31: 2 | G31: 5 | H31: 0 | I31: 0 | J31: 0 | K31: 0 | L31: 0 | M31: 0 | N31: 0 | O31: 0 | P31: 0 | Q31: 0 | R31: 0 | S31: 0 | T31: 0 | U31: 0 | V31: 0 | W31: 0 | X31: 0 | Y31: 0 | Z31: 0 | AA31: 17 | AB31: 0 | AC31: 0 | AD31: 1 | AE31: 0 | AF31: 0 | AG31: 0 | AH31: 0 | AI31: 0 | AJ31: 0 | AK31: 0 | AL31: 0 | AM31: 0 | AN31: 0 | AO31: 0 | AP31: 6 | AQ31: 0 | AR31: 0 | CD31: 31 | CE31: 29 | CF31: =VLOOKUP(CE31,'NOVATOS E INTERMEDIOS'!$B$3:$C$103,2,FALSE) -> SAN SEBASTIAN | CG31: =VLOOKUP(CF31,'NOVATOS E INTERMEDIOS'!$C$3:$CD$103,2,FALSE) -> 56
A32: -3e-07 | B32: 66 | C32: GRAN MASTER | D32: 12 | E32: 0 | F32: 2 | G32: 0 | H32: 0 | I32: 0 | J32: 0 | K32: 0 | L32: 0 | M32: 0 | N32: 0 | O32: 0 | P32: 0 | Q32: 0 | R32: 0 | S32: 0 | T32: 0 | U32: 0 | V32: 0 | W32: 0 | X32: 0 | Y32: 5 | Z32: 5 | AA32: 0 | AB32: 0 | AC32: 0 | AD32: 0 | AE32: 0 | AF32: 0 | AG32: 0 | AH32: 0 | AI32: 0 | AJ32: 0 | AK32: 0 | AL32: 0 | AM32: 0 | AN32: 0 | AO32: 0 | AP32: 0 | AQ32: 0 | AR32: 0 | CD32: 12 | CE32: 30 | CF32: =VLOOKUP(CE32,'NOVATOS E INTERMEDIOS'!$B$3:$C$103,2,FALSE) -> TAE SHO KU | CG32: =VLOOKUP(CF32,'NOVATOS E INTERMEDIOS'!$C$3:$CD$103,2,FALSE) -> 56
A33: -3.1e-07 | B33: 96 | C33: GOYANG - IDEUL | D33: -0 | E33: 0 | F33: 0 | G33: 0 | H33: 0 | I33: 0 | J33: 0 | K33: 0 | L33: 0 | M33: 0 | N33: 0 | O33: 0 | P33: 0 | Q33: 0 | R33: 0 | S33: 0 | T33: 0 | U33: 0 | V33: 0 | W33: 0 | X33: 0 | Y33: 0 | Z33: 0 | AA33: 0 | AB33: 0 | AC33: 0 | AD33: 0 | AE33: 0 | AF33: 0 | AG33: 0 | AH33: 0 | AI33: 0 | AJ33: 0 | AK33: 0 | AL33: 0 | AM33: 0 | AN33: 0 | AO33: 0 | AP33: 0 | AQ33: 0 | AR33: 0 | CD33: 0 | CE33: =CE32+1 -> 31 | CF33: =VLOOKUP(CE33,'NOVATOS E INTERMEDIOS'!$B$3:$C$103,2,FALSE) -> DRACO | CG33: =VLOOKUP(CF33,'NOVATOS E INTERMEDIOS'!$C$3:$CD$103,2,FALSE) -> 54
A34: -3.2e-07 | B34: 40 | C34: HAN SU | D34: 37 | E34: 0 | F34: 26 | G34: 5 | H34: 0 | I34: 0 | J34: 0 | K34: 0 | L34: 0 | M34: 0 | N34: 0 | O34: 0 | P34: 0 | Q34: 0 | R34: 0 | S34: 0 | T34: 0 | U34: 0 | V34: 0 | W34: 0 | X34: 0 | Y34: 0 | Z34: 0 | AA34: 0 | AB34: 0 | AC34: 0 | AD34: 0 | AE34: 0 | AF34: 0 | AG34: 0 | AH34: 0 | AI34: 0 | AJ34: 0 | AK34: 0 | AL34: 0 | AM34: 0 | AN34: 0 | AO34: 0 | AP34: 6 | AQ34: 0 | AR34: 0 | CD34: 37 | CE34: 32 | CF34: =VLOOKUP(CE34,'NOVATOS E INTERMEDIOS'!$B$3:$C$103,2,FALSE) -> ATLAS CLUB | CG34: =VLOOKUP(CF34,'NOVATOS E INTERMEDIOS'!$C$3:$CD$103,2,FALSE) -> 50
A35: -3.3e-07 | B35: 16 | C35: HAN KUM DO | D35: =CD35+A35*ROW() -> 119 | E35: 0 | F35: 4 | G35: 5 | H35: 0 | I35: 0 | J35: 7 | K35: 17 | L35: 0 | M35: 0 | N35: 0 | O35: 0 | P35: 0 | Q35: 0 | R35: 14 | S35: 0 | T35: 1 | U35: 7 | V35: 0 | W35: 0 | X35: 0 | Y35: 5 | Z35: 5 | AA35: 11 | AB35: 0 | AC35: 25 | AD35: 14 | AE35: 0 | AF35: 0 | AG35: 0 | AH35: 0 | AI35: 0 | AJ35: 0 | AK35: 0 | AL35: 0 | AM35: 0 | AN35: 0 | AO35: 0 | AP35: 4 | AQ35: 0 | AR35: 0 | CD35: =SUM(E35:CC35) -> 119 | CE35: 33 | CF35: =VLOOKUP(CE35,'NOVATOS E INTERMEDIOS'!$B$3:$C$103,2,FALSE) -> ECUADOR | CG35: =VLOOKUP(CF35,'NOVATOS E INTERMEDIOS'!$C$3:$CD$103,2,FALSE) -> 49
A36: -3.4e-07 | B36: 63 | C36: HIMCHARI DONJANG | D36: 14 | E36: 0 | F36: 4 | G36: 5 | H36: 0 | I36: 0 | J36: 0 | K36: 0 | L36: 0 | M36: 0 | N36: 0 | O36: 0 | P36: 0 | Q36: 0 | R36: 0 | S36: 0 | T36: 0 | U36: 0 | V36: 0 | W36: 0 | X36: 0 | Y36: 5 | Z36: 0 | AA36: 0 | AB36: 0 | AC36: 0 | AD36: 0 | AE36: 0 | AF36: 0 | AG36: 0 | AH36: 0 | AI36: 0 | AJ36: 0 | AK36: 0 | AL36: 0 | AM36: 0 | AN36: 0 | AO36: 0 | AP36: 0 | AQ36: 0 | AR36: 0 | CD36: 14 | CE36: 34 | CF36: =VLOOKUP(CE36,'NOVATOS E INTERMEDIOS'!$B$3:$C$103,2,FALSE) -> KOREAN DRAGON | CG36: =VLOOKUP(CF36,'NOVATOS E INTERMEDIOS'!$C$3:$CD$103,2,FALSE) -> 46
A37: -3.5e-07 | B37: 68 | C37: HUAN TOP GYM | D37: 11 | E37: 0 | F37: 6 | G37: 0 | H37: 0 | I37: 0 | J37: 0 | K37: 0 | L37: 0 | M37: 0 | N37: 0 | O37: 0 | P37: 0 | Q37: 0 | R37: 0 | S37: 0 | T37: 0 | U37: 0 | V37: 0 | W37: 0 | X37: 0 | Y37: 0 | Z37: 5 | AA37: 0 | AB37: 0 | AC37: 0 | AD37: 0 | AE37: 0 | AF37: 0 | AG37: 0 | AH37: 0 | AI37: 0 | AJ37: 0 | AK37: 0 | AL37: 0 | AM37: 0 | AN37: 0 | AO37: 0 | AP37: 0 | AQ37: 0 | AR37: 0 | CD37: 11 | CE37: 35 | CF37: =VLOOKUP(CE37,'NOVATOS E INTERMEDIOS'!$B$3:$C$103,2,FALSE) -> MARCIAL CLUB GRANDA | CG37: =VLOOKUP(CF37,'NOVATOS E INTERMEDIOS'!$C$3:$CD$103,2,FALSE) -> 43
A38: -3.6e-07 | B38: 43 | C38: ILYOP MP | D38: 32 | E38: 0 | F38: 10 | G38: 5 | H38: 0 | I38: 0 | J38: 0 | K38: 0 | L38: 0 | M38: 0 | N38: 0 | O38: 0 | P38: 0 | Q38: 0 | R38: 0 | S38: 0 | T38: 0 | U38: 0 | V38: 0 | W38: 5 | X38: 0 | Y38: 0 | Z38: 5 | AA38: 1 | AB38: 0 | AC38: 0 | AD38: 0 | AE38: 0 | AF38: 0 | AG38: 0 | AH38: 0 | AI38: 0 | AJ38: 0 | AK38: 0 | AL38: 0 | AM38: 0 | AN38: 0 | AO38: 0 | AP38: 6 | AQ38: 0 | AR38: 0 | CD38: 32 | CE38: 36 | CF38: =VLOOKUP(CE38,'NOVATOS E INTERMEDIOS'!$B$3:$C$103,2,FALSE) -> ROJAS IRON FIRST | CG38: =VLOOKUP(CF38,'NOVATOS E INTERMEDIOS'!$C$3:$CD$103,2,FALSE) -> 42
A39: -3.7e-07 | B39: 74 | C39: JI DO KWAN | D39: 6 | E39: 2 | F39: 2 | G39: 0 | H39: 0 | I39: 0 | J39: 0 | K39: 0 | L39: 0 | M39: 0 | N39: 0 | O39: 0 | P39: 0 | Q39: 0 | R39: 0 | S39: 0 | T39: 0 | U39: 0 | V39: 0 | W39: 0 | X39: 0 | Y39: 0 | Z39: 0 | AA39: 0 | AB39: 0 | AC39: 0 | AD39: 0 | AE39: 0 | AF39: 0 | AG39: 0 | AH39: 0 | AI39: 0 | AJ39: 0 | AK39: 0 | AL39: 0 | AM39: 0 | AN39: 0 | AO39: 0 | AP39: 2 | AQ39: 0 | AR39: 0 | CD39: 6 | CE39: 37 | CF39: =VLOOKUP(CE39,'NOVATOS E INTERMEDIOS'!$B$3:$C$103,2,FALSE) -> SAN FRANCISCO TIGRES | CG39: =VLOOKUP(CF39,'NOVATOS E INTERMEDIOS'!$C$3:$CD$103,2,FALSE) -> 41
A40: -3.8e-07 | B40: 5 | C40: JOSEON LEGACY | D40: 211 | E40: 12 | F40: 6 | G40: 5 | H40: 0 | I40: 0 | J40: 0 | K40: 25 | L40: 11 | M40: 0 | N40: 0 | O40: 0 | P40: 25 | Q40: 0 | R40: 0 | S40: 0 | T40: 0 | U40: 14 | V40: 0 | W40: 0 | X40: 18 | Y40: 0 | Z40: 5 | AA40: 0 | AB40: 0 | AC40: 0 | AD40: 20 | AE40: 0 | AF40: 0 | AG40: 0 | AH40: 0 | AI40: 3 | AJ40: 25 | AK40: 0 | AL40: 0 | AM40: 0 | AN40: 25 | AO40: 0 | AP40: 12 | AQ40: 0 | AR40: 5 | CD40: 211 | CE40: 38 | CF40: =VLOOKUP(CE40,'NOVATOS E INTERMEDIOS'!$B$3:$C$103,2,FALSE) -> SHOGUN | CG40: =VLOOKUP(CF40,'NOVATOS E INTERMEDIOS'!$C$3:$CD$103,2,FALSE) -> 41
A41: -3.9e-07 | B41: 75 | C41: JR SPORT | D41: 6 | E41: 4 | F41: 2 | G41: 0 | H41: 0 | I41: 0 | J41: 0 | K41: 0 | L41: 0 | M41: 0 | N41: 0 | O41: 0 | P41: 0 | Q41: 0 | R41: 0 | S41: 0 | T41: 0 | U41: 0 | V41: 0 | W41: 0 | X41: 0 | Y41: 0 | Z41: 0 | AA41: 0 | AB41: 0 | AC41: 0 | AD41: 0 | AE41: 0 | AF41: 0 | AG41: 0 | AH41: 0 | AI41: 0 | AJ41: 0 | AK41: 0 | AL41: 0 | AM41: 0 | AN41: 0 | AO41: 0 | AP41: 0 | AQ41: 0 | AR41: 0 | CD41: 6 | CE41: 39 | CF41: =VLOOKUP(CE41,'NOVATOS E INTERMEDIOS'!$B$3:$C$103,2,FALSE) -> TAE WOONG | CG41: =VLOOKUP(CF41,'NOVATOS E INTERMEDIOS'!$C$3:$CD$103,2,FALSE) -> 39
A42: -4e-07 | B42: 51 | C42: JUVENTUS | D42: 22 | E42: 12 | F42: 6 | G42: 0 | H42: 0 | I42: 0 | J42: 0 | K42: 0 | L42: 0 | M42: 0 | N42: 0 | O42: 0 | P42: 0 | Q42: 0 | R42: 0 | S42: 0 | T42: 0 | U42: 0 | V42: 0 | W42: 0 | X42: 0 | Y42: 0 | Z42: 0 | AA42: 0 | AB42: 0 | AC42: 0 | AD42: 0 | AE42: 0 | AF42: 0 | AG42: 0 | AH42: 0 | AI42: 0 | AJ42: 0 | AK42: 0 | AL42: 0 | AM42: 0 | AN42: 0 | AO42: 0 | AP42: 4 | AQ42: 0 | AR42: 0 | CD42: 22 | CE42: 40 | CF42: =VLOOKUP(CE42,'NOVATOS E INTERMEDIOS'!$B$3:$C$103,2,FALSE) -> HAN SU | CG42: =VLOOKUP(CF42,'NOVATOS E INTERMEDIOS'!$C$3:$CD$103,2,FALSE) -> 37
A43: -4.1e-07 | B43: 44 | C43: JERATHEL | D43: 32 | E43: 0 | F43: 4 | G43: 5 | H43: 0 | I43: 0 | J43: 0 | K43: 0 | L43: 0 | M43: 0 | N43: 0 | O43: 0 | P43: 0 | Q43: 11 | R43: 7 | S43: 0 | T43: 0 | U43: 0 | V43: 0 | W43: 0 | X43: 0 | Y43: 0 | Z43: 5 | AA43: 0 | AB43: 0 | AC43: 0 | AD43: 0 | AE43: 0 | AF43: 0 | AG43: 0 | AH43: 0 | AI43: 0 | AJ43: 0 | AK43: 0 | AL43: 0 | AM43: 0 | AN43: 0 | AO43: 0 | AP43: 0 | AQ43: 0 | AR43: 0 | CD43: 32 | CE43: 41 | CF43: =VLOOKUP(CE43,'NOVATOS E INTERMEDIOS'!$B$3:$C$103,2,FALSE) -> CIUDAD DE QUITO | CG43: =VLOOKUP(CF43,'NOVATOS E INTERMEDIOS'!$C$3:$CD$103,2,FALSE) -> 33
A44: -4.2e-07 | B44: 9 | C44: KO AMERICA | D44: 143 | E44: 2 | F44: 12 | G44: 0 | H44: 0 | I44: 0 | J44: 0 | K44: 0 | L44: 0 | M44: 0 | N44: 0 | O44: 11 | P44: 0 | Q44: 0 | R44: 20 | S44: 0 | T44: 20 | U44: 25 | V44: 0 | W44: 0 | X44: 0 | Y44: 0 | Z44: 5 | AA44: 0 | AB44: 14 | AC44: 0 | AD44: 0 | AE44: 0 | AF44: 1 | AG44: 0 | AH44: 0 | AI44: 0 | AJ44: 14 | AK44: 0 | AL44: 0 | AM44: 0 | AN44: 17 | AO44: 0 | AP44: 2 | AQ44: 0 | AR44: 0 | CD44: 143 | CE44: 42 | CF44: =VLOOKUP(CE44,'NOVATOS E INTERMEDIOS'!$B$3:$C$103,2,FALSE) -> KUNGAN DUL | CG44: =VLOOKUP(CF44,'NOVATOS E INTERMEDIOS'!$C$3:$CD$103,2,FALSE) -> 33
A45: -4.3e-07 | B45: 34 | C45: KOREAN DRAGON | D45: 46 | E45: 0 | F45: 22 | G45: 0 | H45: 0 | I45: 0 | J45: 0 | K45: 0 | L45: 0 | M45: 0 | N45: 0 | O45: 0 | P45: 0 | Q45: 0 | R45: 0 | S45: 0 | T45: 0 | U45: 0 | V45: 0 | W45: 0 | X45: 0 | Y45: 0 | Z45: 0 | AA45: 0 | AB45: 0 | AC45: 0 | AD45: 0 | AE45: 0 | AF45: 0 | AG45: 0 | AH45: 0 | AI45: 0 | AJ45: 0 | AK45: 0 | AL45: 0 | AM45: 7 | AN45: 0 | AO45: 17 | AP45: 0 | AQ45: 0 | AR45: 0 | CD45: 46 | CE45: 43 | CF45: =VLOOKUP(CE45,'NOVATOS E INTERMEDIOS'!$B$3:$C$103,2,FALSE) -> ILYOP MP | CG45: =VLOOKUP(CF45,'NOVATOS E INTERMEDIOS'!$C$3:$CD$103,2,FALSE) -> 32
A46: -4.4e-07 | B46: 46 | C46: KORYO | D46: 30 | E46: 2 | F46: 12 | G46: 5 | H46: 0 | I46: 0 | J46: 0 | K46: 0 | L46: 0 | M46: 0 | N46: 0 | O46: 0 | P46: 0 | Q46: 0 | R46: 0 | S46: 0 | T46: 0 | U46: 0 | V46: 0 | W46: 0 | X46: 0 | Y46: 0 | Z46: 5 | AA46: 0 | AB46: 0 | AC46: 0 | AD46: 0 | AE46: 0 | AF46: 0 | AG46: 0 | AH46: 0 | AI46: 0 | AJ46: 0 | AK46: 0 | AL46: 0 | AM46: 0 | AN46: 0 | AO46: 0 | AP46: 6 | AQ46: 0 | AR46: 0 | CD46: 30 | CE46: 44 | CF46: =VLOOKUP(CE46,'NOVATOS E INTERMEDIOS'!$B$3:$C$103,2,FALSE) -> JERATHEL | CG46: =VLOOKUP(CF46,'NOVATOS E INTERMEDIOS'!$C$3:$CD$103,2,FALSE) -> 32
A47: -4.5e-07 | B47: 26 | C47: KUKKIKWON | D47: 61 | E47: 0 | F47: 6 | G47: 0 | H47: 0 | I47: 0 | J47: 0 | K47: 0 | L47: 0 | M47: 1 | N47: 17 | O47: 0 | P47: 0 | Q47: 0 | R47: 0 | S47: 0 | T47: 7 | U47: 0 | V47: 0 | W47: 0 | X47: 0 | Y47: 0 | Z47: 5 | AA47: 0 | AB47: 0 | AC47: 0 | AD47: 0 | AE47: 0 | AF47: 0 | AG47: 25 | AH47: 0 | AI47: 0 | AJ47: 0 | AK47: 0 | AL47: 0 | AM47: 0 | AN47: 0 | AO47: 0 | AP47: 0 | AQ47: 0 | AR47: 0 | CD47: 61 | CE47: 45 | CF47: =VLOOKUP(CE47,'NOVATOS E INTERMEDIOS'!$B$3:$C$103,2,FALSE) -> FURIA NEGRA | CG47: =VLOOKUP(CF47,'NOVATOS E INTERMEDIOS'!$C$3:$CD$103,2,FALSE) -> 31
A48: -4.6e-07 | B48: 42 | C48: KUNGAN DUL | D48: 33 | E48: 0 | F48: 12 | G48: 0 | H48: 14 | I48: 0 | J48: 0 | K48: 0 | L48: 0 | M48: 0 | N48: 0 | O48: 0 | P48: 0 | Q48: 0 | R48: 0 | S48: 0 | T48: 0 | U48: 0 | V48: 0 | W48: 0 | X48: 0 | Y48: 5 | Z48: 0 | AA48: 0 | AB48: 0 | AC48: 0 | AD48: 0 | AE48: 0 | AF48: 0 | AG48: 0 | AH48: 0 | AI48: 0 | AJ48: 0 | AK48: 0 | AL48: 0 | AM48: 0 | AN48: 0 | AO48: 0 | AP48: 2 | AQ48: 0 | AR48: 0 | CD48: 33 | CE48: 46 | CF48: =VLOOKUP(CE48,'NOVATOS E INTERMEDIOS'!$B$3:$C$103,2,FALSE) -> KORYO | CG48: =VLOOKUP(CF48,'NOVATOS E INTERMEDIOS'!$C$3:$CD$103,2,FALSE) -> 30
A49: -4.7e-07 | B49: 27 | C49: KYORUGUI GYM | D49: 61 | E49: 0 | F49: 10 | G49: 0 | H49: 0 | I49: 0 | J49: 0 | K49: 14 | L49: 14 | M49: 0 | N49: 0 | O49: 0 | P49: 0 | Q49: 7 | R49: 11 | S49: 0 | T49: 0 | U49: 0 | V49: 0 | W49: 5 | X49: 0 | Y49: 0 | Z49: 0 | AA49: 0 | AB49: 0 | AC49: 0 | AD49: 0 | AE49: 0 | AF49: 0 | AG49: 0 | AH49: 0 | AI49: 0 | AJ49: 0 | AK49: 0 | AL49: 0 | AM49: 0 | AN49: 0 | AO49: 0 | AP49: 0 | AQ49: 0 | AR49: 0 | CD49: 61 | CE49: 47 | CF49: =VLOOKUP(CE49,'NOVATOS E INTERMEDIOS'!$B$3:$C$103,2,FALSE) -> DECIAP | CG49: =VLOOKUP(CF49,'NOVATOS E INTERMEDIOS'!$C$3:$CD$103,2,FALSE) -> 29
A50: -4.8e-07 | B50: 13 | C50: LEON | D50: 128 | E50: 2 | F50: 8 | G50: 5 | H50: 0 | I50: 3 | J50: 17 | K50: 3 | L50: 0 | M50: 0 | N50: 0 | O50: 17 | P50: 11 | Q50: 0 | R50: 0 | S50: 0 | T50: 0 | U50: 0 | V50: 0 | W50: 0 | X50: 0 | Y50: 0 | Z50: 5 | AA50: 0 | AB50: 3 | AC50: 0 | AD50: 0 | AE50: 14 | AF50: 20 | AG50: 11 | AH50: 3 | AI50: 0 | AJ50: 0 | AK50: 0 | AL50: 0 | AM50: 0 | AN50: 0 | AO50: 0 | AP50: 6 | AQ50: 0 | AR50: 0 | CD50: 128 | CE50: 48 | CF50: =VLOOKUP(CE50,'NOVATOS E INTERMEDIOS'!$B$3:$C$103,2,FALSE) -> SIM JANG TEAM | CG50: =VLOOKUP(CF50,'NOVATOS E INTERMEDIOS'!$C$3:$CD$103,2,FALSE) -> 27
A51: -4.9e-07 | B51: 58 | C51: LIGA CANTONAL MEJIA | D51: 17 | E51: 0 | F51: 8 | G51: 5 | H51: 0 | I51: 0 | J51: 3 | K51: 0 | L51: 0 | M51: 0 | N51: 0 | O51: 0 | P51: 0 | Q51: 0 | R51: 0 | S51: 0 | T51: 0 | U51: 0 | V51: 0 | W51: 0 | X51: 0 | Y51: 0 | Z51: 0 | AA51: 0 | AB51: 0 | AC51: 0 | AD51: 0 | AE51: 0 | AF51: 0 | AG51: 0 | AH51: 1 | AI51: 0 | AJ51: 0 | AK51: 0 | AL51: 0 | AM51: 0 | AN51: 0 | AO51: 0 | AP51: 0 | AQ51: 0 | AR51: 0 | CD51: 17 | CE51: 49 | CF51: =VLOOKUP(CE51,'NOVATOS E INTERMEDIOS'!$B$3:$C$103,2,FALSE) -> YONG TIGER | CG51: =VLOOKUP(CF51,'NOVATOS E INTERMEDIOS'!$C$3:$CD$103,2,FALSE) -> 25
A52: -5e-07 | B52: 76 | C52: LITHE BODY | D52: 6 | E52: 0 | F52: 0 | G52: 0 | H52: 0 | I52: 0 | J52: 0 | K52: 0 | L52: 0 | M52: 0 | N52: 0 | O52: 0 | P52: 0 | Q52: 0 | R52: 0 | S52: 0 | T52: 0 | U52: 0 | V52: 0 | W52: 0 | X52: 0 | Y52: 0 | Z52: 0 | AA52: 0 | AB52: 0 | AC52: 0 | AD52: 0 | AE52: 0 | AF52: 0 | AG52: 0 | AH52: 0 | AI52: 0 | AJ52: 0 | AK52: 0 | AL52: 0 | AM52: 0 | AN52: 0 | AO52: 0 | AP52: 6 | AQ52: 0 | AR52: 0 | CD52: 6 | CE52: 50 | CF52: =VLOOKUP(CE52,'NOVATOS E INTERMEDIOS'!$B$3:$C$103,2,FALSE) -> DRAGON GYM | CG52: =VLOOKUP(CF52,'NOVATOS E INTERMEDIOS'!$C$3:$CD$103,2,FALSE) -> 23
A53: -5.1e-07 | B53: 87 | C53: LOBOS | D53: 2 | E53: 0 | F53: 2 | G53: 0 | H53: 0 | I53: 0 | J53: 0 | K53: 0 | L53: 0 | M53: 0 | N53: 0 | O53: 0 | P53: 0 | Q53: 0 | R53: 0 | S53: 0 | T53: 0 | U53: 0 | V53: 0 | W53: 0 | X53: 0 | Y53: 0 | Z53: 0 | AA53: 0 | AB53: 0 | AC53: 0 | AD53: 0 | AE53: 0 | AF53: 0 | AG53: 0 | AH53: 0 | AI53: 0 | AJ53: 0 | AK53: 0 | AL53: 0 | AM53: 0 | AN53: 0 | AO53: 0 | AP53: 0 | AQ53: 0 | AR53: 0 | CD53: 2 | CE53: 51 | CF53: =VLOOKUP(CE53,'NOVATOS E INTERMEDIOS'!$B$3:$C$103,2,FALSE) -> JUVENTUS | CG53: =VLOOKUP(CF53,'NOVATOS E INTERMEDIOS'!$C$3:$CD$103,2,FALSE) -> 22
A54: -5.2e-07 | B54: 8 | C54: LOS PUMAS | D54: 160 | E54: 2 | F54: 20 | G54: 0 | H54: 20 | I54: 0 | J54: 0 | K54: 0 | L54: 0 | M54: 3 | N54: 3 | O54: 20 | P54: 0 | Q54: 0 | R54: 0 | S54: 0 | T54: 0 | U54: 0 | V54: 0 | W54: 0 | X54: 0 | Y54: 0 | Z54: 0 | AA54: 0 | AB54: 0 | AC54: 0 | AD54: 0 | AE54: 0 | AF54: 17 | AG54: 0 | AH54: 25 | AI54: 25 | AJ54: 0 | AK54: 0 | AL54: 0 | AM54: 0 | AN54: 0 | AO54: 0 | AP54: 8 | AQ54: 17 | AR54: 0 | CD54: 160 | CE54: 52 | CF54: =VLOOKUP(CE54,'NOVATOS E INTERMEDIOS'!$B$3:$C$103,2,FALSE) -> TAEKWONDO JUCARO | CG54: =VLOOKUP(CF54,'NOVATOS E INTERMEDIOS'!$C$3:$CD$103,2,FALSE) -> 22
A55: -5.3e-07 | B55: 61 | C55: MASTER HOME | D55: 16 | E55: 0 | F55: 6 | G55: 0 | H55: 0 | I55: 0 | J55: 0 | K55: 0 | L55: 0 | M55: 0 | N55: 0 | O55: 0 | P55: 0 | Q55: 0 | R55: 0 | S55: 0 | T55: 0 | U55: 0 | V55: 0 | W55: 0 | X55: 0 | Y55: 0 | Z55: 0 | AA55: 0 | AB55: 0 | AC55: 0 | AD55: 0 | AE55: 0 | AF55: 0 | AG55: 0 | AH55: 0 | AI55: 0 | AJ55: 0 | AK55: 0 | AL55: 0 | AM55: 0 | AN55: 0 | AO55: 0 | AP55: 10 | AQ55: 0 | AR55: 0 | CD55: 16 | CE55: 53 | CF55: =VLOOKUP(CE55,'NOVATOS E INTERMEDIOS'!$B$3:$C$103,2,FALSE) -> PANDADEMON | CG55: =VLOOKUP(CF55,'NOVATOS E INTERMEDIOS'!$C$3:$CD$103,2,FALSE) -> 21
A56: -5.4e-07 | B56: 35 | C56: MARCIAL CLUB GRANDA | D56: 43 | E56: 0 | F56: 10 | G56: 0 | H56: 0 | I56: 0 | J56: 0 | K56: 1 | L56: 0 | M56: 0 | N56: 20 | O56: 0 | P56: 0 | Q56: 0 | R56: 3 | S56: 0 | T56: 0 | U56: 0 | V56: 0 | W56: 0 | X56: 0 | Y56: 0 | Z56: 0 | AA56: 0 | AB56: 0 | AC56: 0 | AD56: 0 | AE56: 0 | AF56: 0 | AG56: 0 | AH56: 0 | AI56: 0 | AJ56: 0 | AK56: 3 | AL56: 0 | AM56: 0 | AN56: 0 | AO56: 0 | AP56: 6 | AQ56: 0 | AR56: 0 | CD56: 43 | CE56: 54 | CF56: =VLOOKUP(CE56,'NOVATOS E INTERMEDIOS'!$B$3:$C$103,2,FALSE) -> TAE BAEK ECUADOR | CG56: =VLOOKUP(CF56,'NOVATOS E INTERMEDIOS'!$C$3:$CD$103,2,FALSE) -> 21
A57: -5.5e-07 | B57: 7 | C57: MERCENARIOS | D57: 186 | E57: 0 | F57: 22 | G57: 5 | H57: 0 | I57: 7 | J57: 14 | K57: 0 | L57: 7 | M57: 25 | N57: 0 | O57: 0 | P57: 0 | Q57: 0 | R57: 0 | S57: 0 | T57: 0 | U57: 0 | V57: 0 | W57: 0 | X57: 0 | Y57: 5 | Z57: 5 | AA57: 20 | AB57: 17 | AC57: 20 | AD57: 25 | AE57: 0 | AF57: 0 | AG57: 0 | AH57: 0 | AI57: 14 | AJ57: 0 | AK57: 0 | AL57: 0 | AM57: 0 | AN57: 0 | AO57: 0 | AP57: 0 | AQ57: 0 | AR57: 0 | CD57: 186 | CE57: 55 | CF57: =VLOOKUP(CE57,'NOVATOS E INTERMEDIOS'!$B$3:$C$103,2,FALSE) -> CHONKWON | CG57: =VLOOKUP(CF57,'NOVATOS E INTERMEDIOS'!$C$3:$CD$103,2,FALSE) -> 20
A58: -5.6e-07 | B58: 88 | C58: MILENIUM | D58: 2 | E58: 0 | F58: 2 | G58: 0 | H58: 0 | I58: 0 | J58: 0 | K58: 0 | L58: 0 | M58: 0 | N58: 0 | O58: 0 | P58: 0 | Q58: 0 | R58: 0 | S58: 0 | T58: 0 | U58: 0 | V58: 0 | W58: 0 | X58: 0 | Y58: 0 | Z58: 0 | AA58: 0 | AB58: 0 | AC58: 0 | AD58: 0 | AE58: 0 | AF58: 0 | AG58: 0 | AH58: 0 | AI58: 0 | AJ58: 0 | AK58: 0 | AL58: 0 | AM58: 0 | AN58: 0 | AO58: 0 | AP58: 0 | AQ58: 0 | AR58: 0 | CD58: 2 | CE58: 56 | CF58: =VLOOKUP(CE58,'NOVATOS E INTERMEDIOS'!$B$3:$C$103,2,FALSE) -> RAIG de LLUM | CG58: =VLOOKUP(CF58,'NOVATOS E INTERMEDIOS'!$C$3:$CD$103,2,FALSE) -> 20
A59: -5.7e-07 | B59: 79 | C59: MICHAY DO | D59: 4 | E59: 0 | F59: 2 | G59: 0 | H59: 0 | I59: 0 | J59: 0 | K59: 0 | L59: 0 | M59: 0 | N59: 0 | O59: 0 | P59: 0 | Q59: 0 | R59: 0 | S59: 0 | T59: 0 | U59: 0 | V59: 0 | W59: 0 | X59: 0 | Y59: 0 | Z59: 0 | AA59: 0 | AB59: 0 | AC59: 0 | AD59: 0 | AE59: 0 | AF59: 0 | AG59: 0 | AH59: 0 | AI59: 0 | AJ59: 0 | AK59: 0 | AL59: 0 | AM59: 0 | AN59: 0 | AO59: 0 | AP59: 2 | AQ59: 0 | AR59: 0 | CD59: 4 | CE59: 57 | CF59: =VLOOKUP(CE59,'NOVATOS E INTERMEDIOS'!$B$3:$C$103,2,FALSE) -> FIRST CLASS CALDERON | CG59: =VLOOKUP(CF59,'NOVATOS E INTERMEDIOS'!$C$3:$CD$103,2,FALSE) -> 18
A60: -5.8e-07 | B60: 20 | C60: MINOTAUROS | D60: 89 | E60: 0 | F60: 8 | G60: 5 | H60: 0 | I60: 0 | J60: 0 | K60: 0 | L60: 25 | M60: 0 | N60: 0 | O60: 0 | P60: 0 | Q60: 0 | R60: 0 | S60: 0 | T60: 0 | U60: 0 | V60: 0 | W60: 0 | X60: 0 | Y60: 5 | Z60: 0 | AA60: 14 | AB60: 7 | AC60: 0 | AD60: 0 | AE60: 20 | AF60: 0 | AG60: 0 | AH60: 0 | AI60: 0 | AJ60: 0 | AK60: 0 | AL60: 0 | AM60: 0 | AN60: 0 | AO60: 0 | AP60: 0 | AQ60: 0 | AR60: 5 | CD60: 89 | CE60: 58 | CF60: =VLOOKUP(CE60,'NOVATOS E INTERMEDIOS'!$B$3:$C$103,2,FALSE) -> LIGA CANTONAL MEJIA | CG60: =VLOOKUP(CF60,'NOVATOS E INTERMEDIOS'!$C$3:$CD$103,2,FALSE) -> 17
A61: -5.9e-07 | B61: 77 | C61: MIT-TKD | D61: 5 | E61: 0 | F61: 0 | G61: 0 | H61: 0 | I61: 0 | J61: 0 | K61: 0 | L61: 0 | M61: 0 | N61: 0 | O61: 0 | P61: 0 | Q61: 0 | R61: 0 | S61: 0 | T61: 0 | U61: 0 | V61: 0 | W61: 5 | X61: 0 | Y61: 0 | Z61: 0 | AA61: 0 | AB61: 0 | AC61: 0 | AD61: 0 | AE61: 0 | AF61: 0 | AG61: 0 | AH61: 0 | AI61: 0 | AJ61: 0 | AK61: 0 | AL61: 0 | AM61: 0 | AN61: 0 | AO61: 0 | AP61: 0 | AQ61: 0 | AR61: 0 | CD61: 5 | CE61: 59 | CF61: =VLOOKUP(CE61,'NOVATOS E INTERMEDIOS'!$B$3:$C$103,2,FALSE) -> UNIVERSIDAD CENTRAL (CAMU) | CG61: =VLOOKUP(CF61,'NOVATOS E INTERMEDIOS'!$C$3:$CD$103,2,FALSE) -> 17
A62: -6e-07 | B62: 70 | C62: PALADINES | D62: 8 | E62: 0 | F62: 8 | G62: 0 | H62: 0 | I62: 0 | J62: 0 | K62: 0 | L62: 0 | M62: 0 | N62: 0 | O62: 0 | P62: 0 | Q62: 0 | R62: 0 | S62: 0 | T62: 0 | U62: 0 | V62: 0 | W62: 0 | X62: 0 | Y62: 0 | Z62: 0 | AA62: 0 | AB62: 0 | AC62: 0 | AD62: 0 | AE62: 0 | AF62: 0 | AG62: 0 | AH62: 0 | AI62: 0 | AJ62: 0 | AK62: 0 | AL62: 0 | AM62: 0 | AN62: 0 | AO62: 0 | AP62: 0 | AQ62: 0 | AR62: 0 | CD62: 8 | CE62: 60 | CF62: =VLOOKUP(CE62,'NOVATOS E INTERMEDIOS'!$B$3:$C$103,2,FALSE) -> UNIVERSIDAD UTE | CG62: =VLOOKUP(CF62,'NOVATOS E INTERMEDIOS'!$C$3:$CD$103,2,FALSE) -> 17
A63: -6.1e-07 | B63: 53 | C63: PANDADEMON | D63: 21 | E63: 0 | F63: 14 | G63: 0 | H63: 0 | I63: 0 | J63: 0 | K63: 0 | L63: 0 | M63: 0 | N63: 0 | O63: 0 | P63: 0 | Q63: 0 | R63: 0 | S63: 0 | T63: 0 | U63: 0 | V63: 0 | W63: 0 | X63: 0 | Y63: 0 | Z63: 0 | AA63: 0 | AB63: 0 | AC63: 0 | AD63: 0 | AE63: 0 | AF63: 0 | AG63: 0 | AH63: 0 | AI63: 0 | AJ63: 0 | AK63: 0 | AL63: 0 | AM63: 0 | AN63: 0 | AO63: 0 | AP63: 2 | AQ63: 0 | AR63: 5 | CD63: 21 | CE63: 61 | CF63: =VLOOKUP(CE63,'NOVATOS E INTERMEDIOS'!$B$3:$C$103,2,FALSE) -> MASTER HOME | CG63: =VLOOKUP(CF63,'NOVATOS E INTERMEDIOS'!$C$3:$CD$103,2,FALSE) -> 16
A64: -6.2e-07 | B64: 67 | C64: PIONEROS FORTI | D64: 12 | E64: 0 | F64: 2 | G64: 0 | H64: 0 | I64: 0 | J64: 0 | K64: 0 | L64: 0 | M64: 0 | N64: 0 | O64: 0 | P64: 0 | Q64: 0 | R64: 0 | S64: 0 | T64: 0 | U64: 0 | V64: 0 | W64: 0 | X64: 10 | Y64: 0 | Z64: 0 | AA64: 0 | AB64: 0 | AC64: 0 | AD64: 0 | AE64: 0 | AF64: 0 | AG64: 0 | AH64: 0 | AI64: 0 | AJ64: 0 | AK64: 0 | AL64: 0 | AM64: 0 | AN64: 0 | AO64: 0 | AP64: 0 | AQ64: 0 | AR64: 0 | CD64: 12 | CE64: 62 | CF64: =VLOOKUP(CE64,'NOVATOS E INTERMEDIOS'!$B$3:$C$103,2,FALSE) -> EQUILIBRIO | CG64: =VLOOKUP(CF64,'NOVATOS E INTERMEDIOS'!$C$3:$CD$103,2,FALSE) -> 15
A65: -6.3e-07 | B65: 80 | C65: PIONEROS MEJIA | D65: 4 | E65: 0 | F65: 4 | G65: 0 | H65: 0 | I65: 0 | J65: 0 | K65: 0 | L65: 0 | M65: 0 | N65: 0 | O65: 0 | P65: 0 | Q65: 0 | R65: 0 | S65: 0 | T65: 0 | U65: 0 | V65: 0 | W65: 0 | X65: 0 | Y65: 0 | Z65: 0 | AA65: 0 | AB65: 0 | AC65: 0 | AD65: 0 | AE65: 0 | AF65: 0 | AG65: 0 | AH65: 0 | AI65: 0 | AJ65: 0 | AK65: 0 | AL65: 0 | AM65: 0 | AN65: 0 | AO65: 0 | AP65: 0 | AQ65: 0 | AR65: 0 | CD65: 4 | CE65: 63 | CF65: =VLOOKUP(CE65,'NOVATOS E INTERMEDIOS'!$B$3:$C$103,2,FALSE) -> HIMCHARI DONJANG | CG65: =VLOOKUP(CF65,'NOVATOS E INTERMEDIOS'!$C$3:$CD$103,2,FALSE) -> 14
A66: -6.4e-07 | B66: 19 | C66: PYONG YANG | D66: 99 | E66: 0 | F66: 10 | G66: 0 | H66: 0 | I66: 25 | J66: 0 | K66: 11 | L66: 20 | M66: 0 | N66: 0 | O66: 0 | P66: 0 | Q66: 0 | R66: 0 | S66: 0 | T66: 0 | U66: 0 | V66: 0 | W66: 0 | X66: 0 | Y66: 5 | Z66: 0 | AA66: 0 | AB66: 11 | AC66: 1 | AD66: 11 | AE66: 3 | AF66: 0 | AG66: 0 | AH66: 0 | AI66: 0 | AJ66: 0 | AK66: 0 | AL66: 0 | AM66: 0 | AN66: 0 | AO66: 0 | AP66: 2 | AQ66: 0 | AR66: 0 | CD66: 99 | CE66: 64 | CF66: =VLOOKUP(CE66,'NOVATOS E INTERMEDIOS'!$B$3:$C$103,2,FALSE) -> TEAM VENCEDORES | CG66: =VLOOKUP(CF66,'NOVATOS E INTERMEDIOS'!$C$3:$CD$103,2,FALSE) -> 14
A67: -6.5e-07 | B67: =_xlfn.RANK.AVG(D67,$D$3:$D$103,0) -> 56 | C67: RAIG de LLUM | D67: =CD67+A67*ROW() -> 20 | E67: 0 | F67: 10 | G67: 0 | H67: 0 | I67: 0 | J67: 0 | K67: 0 | L67: 0 | M67: 0 | N67: 0 | O67: 0 | P67: 0 | Q67: 0 | R67: 0 | S67: 0 | T67: 0 | U67: 0 | V67: 0 | W67: 5 | X67: 0 | Y67: 0 | Z67: 5 | AA67: 0 | AB67: 0 | AC67: 0 | AD67: 0 | AE67: 0 | AF67: 0 | AG67: 0 | AH67: 0 | AI67: 0 | AJ67: 0 | AK67: 0 | AL67: 0 | AM67: 0 | AN67: 0 | AO67: 0 | AP67: 0 | AQ67: 0 | AR67: 0 | CD67: =SUM(E67:CC67) -> 20 | CE67: 65 | CF67: =VLOOKUP(CE67,'NOVATOS E INTERMEDIOS'!$B$3:$C$103,2,FALSE) -> TAE DO ACADEMY | CG67: =VLOOKUP(CF67,'NOVATOS E INTERMEDIOS'!$C$3:$CD$103,2,FALSE) -> 13
A68: -6.6e-07 | B68: 89 | C68: RED TANAKA | D68: 2 | E68: 0 | F68: 2 | G68: 0 | H68: 0 | I68: 0 | J68: 0 | K68: 0 | L68: 0 | M68: 0 | N68: 0 | O68: 0 | P68: 0 | Q68: 0 | R68: 0 | S68: 0 | T68: 0 | U68: 0 | V68: 0 | W68: 0 | X68: 0 | Y68: 0 | Z68: 0 | AA68: 0 | AB68: 0 | AC68: 0 | AD68: 0 | AE68: 0 | AF68: 0 | AG68: 0 | AH68: 0 | AI68: 0 | AJ68: 0 | AK68: 0 | AL68: 0 | AM68: 0 | AN68: 0 | AO68: 0 | AP68: 0 | AQ68: 0 | AR68: 0 | CD68: 2 | CE68: =CE67+1 -> 66 | CF68: =VLOOKUP(CE68,'NOVATOS E INTERMEDIOS'!$B$3:$C$103,2,FALSE) -> GRAN MASTER | CG68: =VLOOKUP(CF68,'NOVATOS E INTERMEDIOS'!$C$3:$CD$103,2,FALSE) -> 12
A69: -6.7e-07 | B69: 81 | C69: RENACER | D69: 4 | E69: 0 | F69: 2 | G69: 0 | H69: 0 | I69: 0 | J69: 0 | K69: 0 | L69: 0 | M69: 0 | N69: 0 | O69: 0 | P69: 0 | Q69: 0 | R69: 0 | S69: 0 | T69: 0 | U69: 0 | V69: 0 | W69: 0 | X69: 0 | Y69: 0 | Z69: 0 | AA69: 0 | AB69: 0 | AC69: 0 | AD69: 0 | AE69: 0 | AF69: 0 | AG69: 0 | AH69: 0 | AI69: 0 | AJ69: 0 | AK69: 0 | AL69: 0 | AM69: 0 | AN69: 0 | AO69: 0 | AP69: 2 | AQ69: 0 | AR69: 0 | CD69: 4 | CE69: 67 | CF69: =VLOOKUP(CE69,'NOVATOS E INTERMEDIOS'!$B$3:$C$103,2,FALSE) -> PIONEROS FORTI | CG69: =VLOOKUP(CF69,'NOVATOS E INTERMEDIOS'!$C$3:$CD$103,2,FALSE) -> 12
A70: -6.8e-07 | B70: 97 | C70: RIONG TAE | D70: -0 | E70: 0 | F70: 0 | G70: 0 | H70: 0 | I70: 0 | J70: 0 | K70: 0 | L70: 0 | M70: 0 | N70: 0 | O70: 0 | P70: 0 | Q70: 0 | R70: 0 | S70: 0 | T70: 0 | U70: 0 | V70: 0 | W70: 0 | X70: 0 | Y70: 0 | Z70: 0 | AA70: 0 | AB70: 0 | AC70: 0 | AD70: 0 | AE70: 0 | AF70: 0 | AG70: 0 | AH70: 0 | AI70: 0 | AJ70: 0 | AK70: 0 | AM70: 0 | AN70: 0 | AO70: 0 | AP70: 0 | AQ70: 0 | AR70: 0 | CD70: 0 | CE70: 68 | CF70: =VLOOKUP(CE70,'NOVATOS E INTERMEDIOS'!$B$3:$C$103,2,FALSE) -> HUAN TOP GYM | CG70: =VLOOKUP(CF70,'NOVATOS E INTERMEDIOS'!$C$3:$CD$103,2,FALSE) -> 11
A71: -6.9e-07 | B71: 36 | C71: ROJAS IRON FIRST | D71: 42 | E71: 0 | F71: 2 | G71: 0 | H71: 0 | I71: 0 | J71: 0 | K71: 0 | L71: 0 | M71: 0 | N71: 0 | O71: 0 | P71: 0 | Q71: 0 | R71: 0 | S71: 0 | T71: 0 | U71: 0 | V71: 0 | W71: 5 | X71: 0 | Y71: 5 | Z71: 0 | AA71: 0 | AB71: 0 | AC71: 11 | AD71: 0 | AE71: 0 | AF71: 0 | AG71: 0 | AH71: 17 | AI71: 0 | AJ71: 0 | AK71: 0 | AL71: 0 | AM71: 0 | AN71: 0 | AO71: 0 | AP71: 2 | AQ71: 0 | AR71: 0 | CD71: 42 | CE71: 69 | CF71: =VLOOKUP(CE71,'NOVATOS E INTERMEDIOS'!$B$3:$C$103,2,FALSE) -> FIT KWON DO | CG71: =VLOOKUP(CF71,'NOVATOS E INTERMEDIOS'!$C$3:$CD$103,2,FALSE) -> 9
A72: -7e-07 | B72: 2 | C72: S.D.CENTRAL | D72: 284 | E72: 6 | F72: 36 | G72: 5 | H72: 17 | I72: 14 | J72: 1 | K72: 0 | L72: 0 | M72: 0 | N72: 25 | O72: 14 | P72: 7 | Q72: 0 | R72: 0 | S72: 11 | T72: 0 | U72: 0 | V72: 0 | W72: 0 | X72: 24 | Y72: 5 | Z72: 5 | AA72: 0 | AB72: 0 | AC72: 17 | AD72: 0 | AE72: 25 | AF72: 0 | AG72: 17 | AH72: 0 | AI72: 1 | AJ72: 7 | AK72: 0 | AL72: 0 | AM72: 0 | AN72: 0 | AO72: 0 | AP72: 22 | AQ72: 20 | AR72: 5 | CD72: 284 | CE72: 70 | CF72: =VLOOKUP(CE72,'NOVATOS E INTERMEDIOS'!$B$3:$C$103,2,FALSE) -> PALADINES | CG72: =VLOOKUP(CF72,'NOVATOS E INTERMEDIOS'!$C$3:$CD$103,2,FALSE) -> 8
A73: -7.1e-07 | B73: 37 | C73: SAN FRANCISCO TIGRES | D73: 41 | E73: 0 | F73: 8 | G73: 5 | H73: 0 | I73: 0 | J73: 0 | K73: 0 | L73: 0 | M73: 0 | N73: 0 | O73: 0 | P73: 0 | Q73: 0 | R73: 0 | S73: 0 | T73: 0 | U73: 0 | V73: 0 | W73: 0 | X73: 0 | Y73: 0 | Z73: 0 | AA73: 0 | AB73: 0 | AC73: 0 | AD73: 0 | AE73: 0 | AF73: 0 | AG73: 0 | AH73: 0 | AI73: 0 | AJ73: 0 | AK73: 14 | AL73: 0 | AM73: 1 | AN73: 11 | AO73: 0 | AP73: 2 | AQ73: 0 | AR73: 0 | CD73: 41 | CE73: 71 | CF73: =VLOOKUP(CE73,'NOVATOS E INTERMEDIOS'!$B$3:$C$103,2,FALSE) -> U SAN FRANCISCO USFQ | CG73: =VLOOKUP(CF73,'NOVATOS E INTERMEDIOS'!$C$3:$CD$103,2,FALSE) -> 7
A74: -7.2e-07 | B74: 29 | C74: SAN SEBASTIAN | D74: 56 | E74: 2 | F74: 8 | G74: 5 | H74: 0 | I74: 0 | J74: 0 | K74: 0 | L74: 0 | M74: 0 | N74: 0 | O74: 0 | P74: 0 | Q74: 0 | R74: 1 | S74: 0 | T74: 0 | U74: 0 | V74: 0 | W74: 0 | X74: 0 | Y74: 0 | Z74: 5 | AA74: 0 | AB74: 0 | AC74: 0 | AD74: 0 | AE74: 0 | AF74: 0 | AG74: 0 | AH74: 0 | AI74: 0 | AJ74: 0 | AK74: 20 | AL74: 11 | AM74: 0 | AN74: 0 | AO74: 0 | AP74: 4 | AQ74: 0 | AR74: 0 | CD74: 56 | CE74: 72 | CF74: =VLOOKUP(CE74,'NOVATOS E INTERMEDIOS'!$B$3:$C$103,2,FALSE) -> DAIGORO | CG74: =VLOOKUP(CF74,'NOVATOS E INTERMEDIOS'!$C$3:$CD$103,2,FALSE) -> 6
A75: -7.3e-07 | B75: 90 | C75: SCORPIUS | D75: 2 | E75: 0 | F75: 2 | G75: 0 | H75: 0 | I75: 0 | J75: 0 | K75: 0 | L75: 0 | M75: 0 | N75: 0 | O75: 0 | P75: 0 | Q75: 0 | R75: 0 | S75: 0 | T75: 0 | U75: 0 | V75: 0 | W75: 0 | X75: 0 | Y75: 0 | Z75: 0 | AA75: 0 | AB75: 0 | AC75: 0 | AD75: 0 | AE75: 0 | AF75: 0 | AG75: 0 | AH75: 0 | AI75: 0 | AJ75: 0 | AK75: 0 | AL75: 0 | AM75: 0 | AN75: 0 | AO75: 0 | AP75: 0 | AQ75: 0 | AR75: 0 | CD75: 2 | CE75: 73 | CF75: =VLOOKUP(CE75,'NOVATOS E INTERMEDIOS'!$B$3:$C$103,2,FALSE) -> FRANG | CG75: =VLOOKUP(CF75,'NOVATOS E INTERMEDIOS'!$C$3:$CD$103,2,FALSE) -> 6
A76: -7.4e-07 | B76: 11 | C76: SEUL | D76: 137 | E76: 10 | F76: 40 | G76: 5 | H76: 0 | I76: 0 | J76: 0 | K76: 0 | L76: 3 | M76: 0 | N76: 0 | O76: 7 | P76: 0 | Q76: 0 | R76: 0 | S76: 0 | T76: 0 | U76: 0 | V76: 0 | W76: 5 | X76: 32 | Y76: 5 | Z76: 5 | AA76: 0 | AB76: 0 | AC76: 0 | AD76: 0 | AE76: 0 | AF76: 0 | AG76: 0 | AH76: 0 | AI76: 0 | AJ76: 0 | AK76: 0 | AL76: 0 | AM76: 0 | AN76: 0 | AO76: 0 | AP76: 20 | AQ76: 0 | AR76: 5 | CD76: 137 | CE76: 74 | CF76: =VLOOKUP(CE76,'NOVATOS E INTERMEDIOS'!$B$3:$C$103,2,FALSE) -> JI DO KWAN | CG76: =VLOOKUP(CF76,'NOVATOS E INTERMEDIOS'!$C$3:$CD$103,2,FALSE) -> 6
A77: -7.5e-07 | B77: 38 | C77: SHOGUN | D77: 41 | E77: 0 | F77: 6 | G77: 5 | H77: 0 | I77: 0 | J77: 0 | K77: 0 | L77: 0 | M77: 0 | N77: 0 | O77: 0 | P77: 0 | Q77: 0 | R77: 0 | S77: 7 | T77: 0 | U77: 0 | V77: 0 | W77: 0 | X77: 6 | Y77: 5 | Z77: 5 | AA77: 0 | AB77: 0 | AC77: 0 | AD77: 0 | AE77: 0 | AF77: 0 | AG77: 0 | AH77: 0 | AI77: 7 | AJ77: 0 | AK77: 0 | AL77: 0 | AM77: 0 | AN77: 0 | AO77: 0 | AP77: 0 | AQ77: 0 | AR77: 0 | CD77: 41 | CE77: 75 | CF77: =VLOOKUP(CE77,'NOVATOS E INTERMEDIOS'!$B$3:$C$103,2,FALSE) -> JR SPORT | CG77: =VLOOKUP(CF77,'NOVATOS E INTERMEDIOS'!$C$3:$CD$103,2,FALSE) -> 6
A78: -7.6e-07 | B78: 48 | C78: SIM JANG TEAM | D78: 27 | E78: 0 | F78: 8 | G78: 5 | H78: 0 | I78: 0 | J78: 0 | K78: 0 | L78: 0 | M78: 0 | N78: 0 | O78: 0 | P78: 3 | Q78: 0 | R78: 0 | S78: 0 | T78: 0 | U78: 0 | V78: 0 | W78: 0 | X78: 0 | Y78: 0 | Z78: 5 | AA78: 0 | AB78: 0 | AC78: 0 | AD78: 0 | AE78: 0 | AF78: 0 | AG78: 0 | AH78: 0 | AI78: 0 | AJ78: 0 | AK78: 0 | AL78: 0 | AM78: 0 | AN78: 0 | AO78: 0 | AP78: 6 | AQ78: 0 | AR78: 0 | CD78: 27 | CE78: 76 | CF78: =VLOOKUP(CE78,'NOVATOS E INTERMEDIOS'!$B$3:$C$103,2,FALSE) -> LITHE BODY | CG78: =VLOOKUP(CF78,'NOVATOS E INTERMEDIOS'!$C$3:$CD$103,2,FALSE) -> 6
A79: -7.7e-07 | B79: 22 | C79: SURYUN | D79: 85 | E79: 0 | F79: 14 | G79: 5 | H79: 0 | I79: 0 | J79: 0 | K79: 0 | L79: 0 | M79: 0 | N79: 0 | O79: 0 | P79: 0 | Q79: 0 | R79: 0 | S79: 0 | T79: 0 | U79: 0 | V79: 0 | W79: 0 | X79: 0 | Y79: 5 | Z79: 0 | AA79: 0 | AB79: 0 | AC79: 0 | AD79: 0 | AE79: 0 | AF79: 0 | AG79: 0 | AH79: 0 | AI79: 0 | AJ79: 0 | AK79: 1 | AL79: 1 | AM79: 25 | AN79: 20 | AO79: 14 | AP79: 0 | AQ79: 0 | AR79: 0 | CD79: 85 | CE79: 77 | CF79: =VLOOKUP(CE79,'NOVATOS E INTERMEDIOS'!$B$3:$C$103,2,FALSE) -> MIT-TKD | CG79: =VLOOKUP(CF79,'NOVATOS E INTERMEDIOS'!$C$3:$CD$103,2,FALSE) -> 5
A80: -7.8e-07 | B80: 54 | C80: TAE BAEK ECUADOR | D80: 21 | E80: 0 | F80: 10 | G80: 0 | H80: 0 | I80: 0 | J80: 0 | K80: 0 | L80: 0 | M80: 0 | N80: 0 | O80: 0 | P80: 0 | Q80: 0 | R80: 0 | S80: 0 | T80: 0 | U80: 0 | V80: 0 | W80: 5 | X80: 0 | Y80: 0 | Z80: 0 | AA80: 0 | AB80: 0 | AC80: 0 | AD80: 0 | AE80: 0 | AF80: 0 | AG80: 0 | AH80: 0 | AI80: 0 | AJ80: 0 | AK80: 0 | AL80: 0 | AM80: 0 | AN80: 0 | AO80: 0 | AP80: 6 | AQ80: 0 | AR80: 0 | CD80: 21 | CE80: 78 | CF80: =VLOOKUP(CE80,'NOVATOS E INTERMEDIOS'!$B$3:$C$103,2,FALSE) -> CONDOR | CG80: =VLOOKUP(CF80,'NOVATOS E INTERMEDIOS'!$C$3:$CD$103,2,FALSE) -> 4
A81: -7.9e-07 | B81: 28 | C81: TAE BAEK ECUADOR JR | D81: 59 | E81: 0 | F81: 24 | G81: 5 | H81: 0 | I81: 0 | J81: 0 | K81: 20 | L81: 0 | M81: 0 | N81: 0 | O81: 0 | P81: 0 | Q81: 0 | R81: 0 | S81: 0 | T81: 0 | U81: 0 | V81: 0 | W81: 5 | X81: 0 | Y81: 0 | Z81: 5 | AA81: 0 | AB81: 0 | AC81: 0 | AD81: 0 | AE81: 0 | AF81: 0 | AG81: 0 | AH81: 0 | AI81: 0 | AJ81: 0 | AK81: 0 | AL81: 0 | AM81: 0 | AN81: 0 | AO81: 0 | AP81: 0 | AQ81: 0 | AR81: 0 | CD81: 59 | CE81: 79 | CF81: =VLOOKUP(CE81,'NOVATOS E INTERMEDIOS'!$B$3:$C$103,2,FALSE) -> MICHAY DO | CG81: =VLOOKUP(CF81,'NOVATOS E INTERMEDIOS'!$C$3:$CD$103,2,FALSE) -> 4
A82: -8e-07 | B82: 82 | C82: TAE KINGS | D82: 4 | E82: 4 | F82: 0 | G82: 0 | H82: 0 | I82: 0 | J82: 0 | K82: 0 | L82: 0 | M82: 0 | N82: 0 | O82: 0 | P82: 0 | Q82: 0 | R82: 0 | S82: 0 | T82: 0 | U82: 0 | V82: 0 | W82: 0 | X82: 0 | Y82: 0 | Z82: 0 | AA82: 0 | AB82: 0 | AC82: 0 | AD82: 0 | AE82: 0 | AF82: 0 | AG82: 0 | AH82: 0 | AI82: 0 | AJ82: 0 | AK82: 0 | AL82: 0 | AM82: 0 | AN82: 0 | AO82: 0 | AP82: 0 | AQ82: 0 | AR82: 0 | CD82: 4 | CE82: 80 | CF82: =VLOOKUP(CE82,'NOVATOS E INTERMEDIOS'!$B$3:$C$103,2,FALSE) -> PIONEROS MEJIA | CG82: =VLOOKUP(CF82,'NOVATOS E INTERMEDIOS'!$C$3:$CD$103,2,FALSE) -> 4
A83: -8.1e-07 | B83: 30 | C83: TAE SHO KU | D83: 56 | E83: 4 | F83: 12 | G83: 5 | H83: 0 | I83: 0 | J83: 0 | K83: 0 | L83: 0 | M83: 0 | N83: 0 | O83: 0 | P83: 0 | Q83: 0 | R83: 0 | S83: 0 | T83: 0 | U83: 0 | V83: 0 | W83: 0 | X83: 0 | Y83: 0 | Z83: 5 | AA83: 0 | AB83: 0 | AC83: 0 | AD83: 0 | AE83: 0 | AF83: 0 | AG83: 3 | AH83: 0 | AI83: 0 | AJ83: 0 | AK83: 0 | AL83: 0 | AM83: 0 | AN83: 0 | AO83: 0 | AP83: 22 | AQ83: 0 | AR83: 5 | CD83: 56 | CE83: 81 | CF83: =VLOOKUP(CE83,'NOVATOS E INTERMEDIOS'!$B$3:$C$103,2,FALSE) -> RENACER | CG83: =VLOOKUP(CF83,'NOVATOS E INTERMEDIOS'!$C$3:$CD$103,2,FALSE) -> 4
A84: -8.2e-07 | B84: 65 | C84: TAE DO ACADEMY | D84: 13 | E84: 0 | F84: 10 | G84: 0 | H84: 0 | I84: 0 | J84: 0 | K84: 0 | L84: 0 | M84: 0 | N84: 1 | O84: 0 | P84: 0 | Q84: 0 | R84: 0 | S84: 0 | T84: 0 | U84: 0 | V84: 0 | W84: 0 | X84: 0 | Y84: 0 | Z84: 0 | AA84: 0 | AB84: 0 | AC84: 0 | AD84: 0 | AE84: 0 | AF84: 0 | AG84: 0 | AH84: 0 | AI84: 0 | AJ84: 0 | AK84: 0 | AL84: 0 | AM84: 0 | AN84: 0 | AO84: 0 | AP84: 2 | AQ84: 0 | AR84: 0 | CD84: 13 | CE84: 82 | CF84: =VLOOKUP(CE84,'NOVATOS E INTERMEDIOS'!$B$3:$C$103,2,FALSE) -> TAE KINGS | CG84: =VLOOKUP(CF84,'NOVATOS E INTERMEDIOS'!$C$3:$CD$103,2,FALSE) -> 4
A85: -8.3e-07 | B85: 17 | C85: TAEKWONDO TRAINING CENTER | D85: 109 | E85: 0 | F85: 34 | G85: 5 | H85: 11 | I85: 0 | J85: 0 | K85: 0 | L85: 0 | M85: 20 | N85: 0 | O85: 0 | P85: 0 | Q85: 0 | R85: 0 | S85: 0 | T85: 0 | U85: 0 | V85: 0 | W85: 0 | X85: 0 | Y85: 0 | Z85: 5 | AA85: 0 | AB85: 0 | AC85: 14 | AD85: 0 | AE85: 0 | AF85: 0 | AG85: 0 | AH85: 20 | AI85: 0 | AJ85: 0 | AK85: 0 | AL85: 0 | AM85: 0 | AN85: 0 | AO85: 0 | AP85: 0 | AQ85: 0 | AR85: 0 | CD85: 109 | CE85: 83 | CF85: =VLOOKUP(CE85,'NOVATOS E INTERMEDIOS'!$B$3:$C$103,2,FALSE) -> TAEKWONDO JITAE | CG85: =VLOOKUP(CF85,'NOVATOS E INTERMEDIOS'!$C$3:$CD$103,2,FALSE) -> 4
A86: -8.4e-07 | B86: 83 | C86: TAEKWONDO JITAE | D86: 4 | E86: 0 | F86: 0 | G86: 0 | H86: 0 | I86: 0 | J86: 0 | K86: 0 | L86: 0 | M86: 0 | N86: 0 | O86: 0 | P86: 0 | Q86: 0 | R86: 0 | S86: 0 | T86: 0 | U86: 0 | V86: 0 | W86: 0 | X86: 0 | Y86: 0 | Z86: 0 | AA86: 0 | AB86: 0 | AC86: 0 | AD86: 0 | AE86: 0 | AF86: 0 | AG86: 0 | AH86: 0 | AI86: 0 | AJ86: 0 | AK86: 0 | AL86: 0 | AM86: 0 | AN86: 0 | AO86: 0 | AP86: 4 | AQ86: 0 | AR86: 0 | CD86: 4 | CE86: 84 | CF86: =VLOOKUP(CE86,'NOVATOS E INTERMEDIOS'!$B$3:$C$103,2,FALSE) -> TEKKEN | CG86: =VLOOKUP(CF86,'NOVATOS E INTERMEDIOS'!$C$3:$CD$103,2,FALSE) -> 4
A87: -8.5e-07 | B87: 52 | C87: TAEKWONDO JUCARO | D87: 22 | E87: 0 | F87: 4 | G87: 0 | H87: 0 | I87: 0 | J87: 0 | K87: 0 | L87: 0 | M87: 0 | N87: 0 | O87: 0 | P87: 0 | Q87: 0 | R87: 0 | S87: 0 | T87: 0 | U87: 0 | V87: 0 | W87: 0 | X87: 0 | Y87: 0 | Z87: 0 | AA87: 0 | AB87: 0 | AC87: 0 | AD87: 0 | AE87: 0 | AF87: 0 | AG87: 0 | AH87: 0 | AI87: 0 | AJ87: 0 | AK87: 0 | AL87: 0 | AM87: 0 | AN87: 14 | AO87: 0 | AP87: 4 | AQ87: 0 | AR87: 0 | CD87: 22 | CE87: 85 | CF87: =VLOOKUP(CE87,'NOVATOS E INTERMEDIOS'!$B$3:$C$103,2,FALSE) -> CLUB MIKIDO | CG87: =VLOOKUP(CF87,'NOVATOS E INTERMEDIOS'!$C$3:$CD$103,2,FALSE) -> 2
A88: -8.6e-07 | B88: 39 | C88: TAE WOONG | D88: 39 | E88: 0 | F88: 8 | G88: 5 | H88: 0 | I88: 0 | J88: 0 | K88: 0 | L88: 0 | M88: 0 | N88: 7 | O88: 0 | P88: 0 | Q88: 0 | R88: 0 | S88: 0 | T88: 0 | U88: 0 | V88: 0 | W88: 0 | X88: 0 | Y88: 5 | Z88: 5 | AA88: 0 | AB88: 0 | AC88: 0 | AD88: 0 | AE88: 0 | AF88: 0 | AG88: 0 | AH88: 0 | AI88: 0 | AJ88: 0 | AK88: 0 | AL88: 0 | AM88: 0 | AN88: 0 | AO88: 0 | AP88: 4 | AQ88: 0 | AR88: 5 | CD88: 39 | CE88: 86 | CF88: =VLOOKUP(CE88,'NOVATOS E INTERMEDIOS'!$B$3:$C$103,2,FALSE) -> DRAGON LEE GYM | CG88: =VLOOKUP(CF88,'NOVATOS E INTERMEDIOS'!$C$3:$CD$103,2,FALSE) -> 2
A89: -8.7e-07 | B89: 91 | C89: TEAM TAUROS TAEKWONDO | D89: 2 | E89: 0 | F89: 2 | G89: 0 | H89: 0 | I89: 0 | J89: 0 | K89: 0 | L89: 0 | M89: 0 | N89: 0 | O89: 0 | P89: 0 | Q89: 0 | R89: 0 | S89: 0 | T89: 0 | U89: 0 | V89: 0 | W89: 0 | X89: 0 | Y89: 0 | Z89: 0 | AA89: 0 | AB89: 0 | AC89: 0 | AD89: 0 | AE89: 0 | AF89: 0 | AG89: 0 | AH89: 0 | AI89: 0 | AJ89: 0 | AK89: 0 | AL89: 0 | AM89: 0 | AN89: 0 | AO89: 0 | AP89: 0 | AQ89: 0 | AR89: 0 | CD89: 2 | CE89: 87 | CF89: =VLOOKUP(CE89,'NOVATOS E INTERMEDIOS'!$B$3:$C$103,2,FALSE) -> LOBOS | CG89: =VLOOKUP(CF89,'NOVATOS E INTERMEDIOS'!$C$3:$CD$103,2,FALSE) -> 2
A90: -8.8e-07 | B90: 64 | C90: TEAM VENCEDORES | D90: 14 | E90: 0 | F90: 6 | G90: 0 | H90: 0 | I90: 0 | J90: 0 | K90: 0 | L90: 0 | M90: 0 | N90: 0 | O90: 0 | P90: 0 | Q90: 0 | R90: 0 | S90: 0 | T90: 0 | U90: 0 | V90: 0 | W90: 0 | X90: 0 | Y90: 0 | Z90: 0 | AA90: 0 | AB90: 0 | AC90: 0 | AD90: 0 | AE90: 0 | AF90: 0 | AG90: 0 | AH90: 0 | AI90: 0 | AJ90: 0 | AK90: 0 | AL90: 0 | AM90: 0 | AN90: 0 | AO90: 0 | AP90: 8 | AQ90: 0 | AR90: 0 | CD90: 14 | CE90: 88 | CF90: =VLOOKUP(CE90,'NOVATOS E INTERMEDIOS'!$B$3:$C$103,2,FALSE) -> MILENIUM | CG90: =VLOOKUP(CF90,'NOVATOS E INTERMEDIOS'!$C$3:$CD$103,2,FALSE) -> 2
A91: -8.9e-07 | B91: 84 | C91: TEKKEN | D91: 4 | E91: 0 | F91: 4 | G91: 0 | H91: 0 | I91: 0 | J91: 0 | K91: 0 | L91: 0 | M91: 0 | N91: 0 | O91: 0 | P91: 0 | Q91: 0 | R91: 0 | S91: 0 | T91: 0 | U91: 0 | V91: 0 | W91: 0 | X91: 0 | Y91: 0 | Z91: 0 | AA91: 0 | AB91: 0 | AC91: 0 | AD91: 0 | AE91: 0 | AF91: 0 | AG91: 0 | AH91: 0 | AI91: 0 | AJ91: 0 | AK91: 0 | AL91: 0 | AM91: 0 | AN91: 0 | AO91: 0 | AP91: 0 | AQ91: 0 | AR91: 0 | CD91: 4 | CE91: 89 | CF91: =VLOOKUP(CE91,'NOVATOS E INTERMEDIOS'!$B$3:$C$103,2,FALSE) -> RED TANAKA | CG91: =VLOOKUP(CF91,'NOVATOS E INTERMEDIOS'!$C$3:$CD$103,2,FALSE) -> 2
A92: -9e-07 | B92: 6 | C92: TOTAL KOMBAT | D92: 191 | E92: 0 | F92: 32 | G92: 5 | H92: 0 | I92: 0 | J92: 0 | K92: 0 | L92: 0 | M92: 0 | N92: 0 | O92: 3 | P92: 20 | Q92: 1 | R92: 0 | S92: 1 | T92: 3 | U92: 0 | V92: 0 | W92: 5 | X92: 22 | Y92: 5 | Z92: 5 | AA92: 0 | AB92: 0 | AC92: 3 | AD92: 0 | AE92: 0 | AF92: 0 | AG92: 0 | AH92: 0 | AI92: 20 | AJ92: 20 | AK92: 0 | AL92: 7 | AM92: 0 | AN92: 0 | AO92: 0 | AP92: 14 | AQ92: 25 | AR92: 0 | CD92: 191 | CE92: 90 | CF92: =VLOOKUP(CE92,'NOVATOS E INTERMEDIOS'!$B$3:$C$103,2,FALSE) -> SCORPIUS | CG92: =VLOOKUP(CF92,'NOVATOS E INTERMEDIOS'!$C$3:$CD$103,2,FALSE) -> 2
A93: -9.1e-07 | B93: 71 | C93: U SAN FRANCISCO USFQ | D93: 7 | E93: 0 | F93: 2 | G93: 5 | H93: 0 | I93: 0 | J93: 0 | K93: 0 | L93: 0 | M93: 0 | N93: 0 | O93: 0 | P93: 0 | Q93: 0 | R93: 0 | S93: 0 | T93: 0 | U93: 0 | V93: 0 | W93: 0 | X93: 0 | Y93: 0 | Z93: 0 | AA93: 0 | AB93: 0 | AC93: 0 | AD93: 0 | AE93: 0 | AF93: 0 | AG93: 0 | AH93: 0 | AI93: 0 | AJ93: 0 | AK93: 0 | AL93: 0 | AM93: 0 | AN93: 0 | AO93: 0 | AP93: 0 | AQ93: 0 | AR93: 0 | CD93: 7 | CE93: 91 | CF93: =VLOOKUP(CE93,'NOVATOS E INTERMEDIOS'!$B$3:$C$103,2,FALSE) -> TEAM TAUROS TAEKWONDO | CG93: =VLOOKUP(CF93,'NOVATOS E INTERMEDIOS'!$C$3:$CD$103,2,FALSE) -> 2
A94: -9.2e-07 | B94: 92 | C94: UNIVERSAL | D94: 2 | E94: 0 | F94: 2 | G94: 0 | H94: 0 | I94: 0 | J94: 0 | K94: 0 | L94: 0 | M94: 0 | N94: 0 | O94: 0 | P94: 0 | Q94: 0 | R94: 0 | S94: 0 | T94: 0 | U94: 0 | V94: 0 | W94: 0 | X94: 0 | Y94: 0 | Z94: 0 | AA94: 0 | AB94: 0 | AC94: 0 | AD94: 0 | AE94: 0 | AF94: 0 | AG94: 0 | AH94: 0 | AI94: 0 | AJ94: 0 | AK94: 0 | AL94: 0 | AM94: 0 | AN94: 0 | AO94: 0 | AP94: 0 | AQ94: 0 | AR94: 0 | CD94: 2 | CE94: 92 | CF94: =VLOOKUP(CE94,'NOVATOS E INTERMEDIOS'!$B$3:$C$103,2,FALSE) -> UNIVERSAL | CG94: =VLOOKUP(CF94,'NOVATOS E INTERMEDIOS'!$C$3:$CD$103,2,FALSE) -> 2
A95: -9.3e-07 | B95: 59 | C95: UNIVERSIDAD CENTRAL (CAMU) | D95: 17 | E95: 0 | F95: 12 | G95: 5 | H95: 0 | I95: 0 | J95: 0 | K95: 0 | L95: 0 | M95: 0 | N95: 0 | O95: 0 | P95: 0 | Q95: 0 | R95: 0 | S95: 0 | T95: 0 | U95: 0 | V95: 0 | W95: 0 | X95: 0 | Y95: 0 | Z95: 0 | AA95: 0 | AB95: 0 | AC95: 0 | AD95: 0 | AE95: 0 | AF95: 0 | AG95: 0 | AH95: 0 | AI95: 0 | AJ95: 0 | AK95: 0 | AL95: 0 | AM95: 0 | AN95: 0 | AO95: 0 | AP95: 0 | AQ95: 0 | AR95: 0 | CD95: 17 | CE95: 93 | CF95: =VLOOKUP(CE95,'NOVATOS E INTERMEDIOS'!$B$3:$C$103,2,FALSE) -> VEMON | CG95: =VLOOKUP(CF95,'NOVATOS E INTERMEDIOS'!$C$3:$CD$103,2,FALSE) -> 2
A96: -9.4e-07 | B96: 98 | C96: UNIVERSIDAD HIMISFERIOS | D96: -0 | E96: 0 | F96: 0 | G96: 0 | H96: 0 | I96: 0 | J96: 0 | K96: 0 | L96: 0 | M96: 0 | N96: 0 | O96: 0 | P96: 0 | Q96: 0 | R96: 0 | S96: 0 | T96: 0 | U96: 0 | V96: 0 | W96: 0 | X96: 0 | Y96: 0 | Z96: 0 | AA96: 0 | AB96: 0 | AC96: 0 | AD96: 0 | AE96: 0 | AF96: 0 | AG96: 0 | AH96: 0 | AI96: 0 | AJ96: 0 | AK96: 0 | AL96: 0 | AM96: 0 | AN96: 0 | AO96: 0 | AP96: 0 | AQ96: 0 | AR96: 0 | CD96: 0 | CE96: 94 | CF96: =VLOOKUP(CE96,'NOVATOS E INTERMEDIOS'!$B$3:$C$103,2,FALSE) -> VILL GYM | CG96: =VLOOKUP(CF96,'NOVATOS E INTERMEDIOS'!$C$3:$CD$103,2,FALSE) -> 2
A97: -9.5e-07 | B97: 60 | C97: UNIVERSIDAD UTE | D97: 17 | E97: 0 | F97: 0 | G97: 5 | H97: 0 | I97: 0 | J97: 0 | K97: 1 | L97: 0 | M97: 0 | N97: 0 | O97: 0 | P97: 0 | Q97: 0 | R97: 0 | S97: 0 | T97: 0 | U97: 0 | V97: 0 | W97: 0 | X97: 0 | Y97: 5 | Z97: 0 | AA97: 0 | AB97: 0 | AC97: 0 | AD97: 0 | AE97: 0 | AF97: 0 | AG97: 0 | AH97: 0 | AI97: 0 | AJ97: 3 | AK97: 0 | AL97: 0 | AM97: 0 | AN97: 0 | AO97: 3 | AP97: 0 | AQ97: 0 | AR97: 0 | CD97: 17 | CE97: 95 | CF97: =VLOOKUP(CE97,'NOVATOS E INTERMEDIOS'!$B$3:$C$103,2,FALSE) -> CHEN HUU | CG97: =VLOOKUP(CF97,'NOVATOS E INTERMEDIOS'!$C$3:$CD$103,2,FALSE) -> -0
A98: -9.6e-07 | B98: 99 | C98: VALLE | D98: =CD98+A98*ROW() -> -0 | E98: 0 | F98: 0 | G98: 0 | H98: 0 | I98: 0 | J98: 0 | K98: 0 | L98: 0 | M98: 0 | N98: 0 | O98: 0 | P98: 0 | Q98: 0 | R98: 0 | S98: 0 | T98: 0 | U98: 0 | V98: 0 | W98: 0 | X98: 0 | Y98: 0 | Z98: 0 | AA98: 0 | AB98: 0 | AC98: 0 | AD98: 0 | AE98: 0 | AF98: 0 | AG98: 0 | AH98: 0 | AI98: 0 | AJ98: 0 | AK98: 0 | AL98: 0 | AM98: 0 | AN98: 0 | AO98: 0 | AP98: 0 | AQ98: 0 | AR98: 0 | CD98: 0 | CE98: 96 | CF98: =VLOOKUP(CE98,'NOVATOS E INTERMEDIOS'!$B$3:$C$103,2,FALSE) -> GOYANG - IDEUL | CG98: =VLOOKUP(CF98,'NOVATOS E INTERMEDIOS'!$C$3:$CD$103,2,FALSE) -> -0
A99: -9.7e-07 | B99: 93 | C99: VEMON | D99: 2 | E99: 0 | F99: 2 | G99: 0 | H99: 0 | I99: 0 | J99: 0 | K99: 0 | L99: 0 | M99: 0 | N99: 0 | O99: 0 | P99: 0 | Q99: 0 | R99: 0 | S99: 0 | T99: 0 | U99: 0 | V99: 0 | W99: 0 | X99: 0 | Y99: 0 | Z99: 0 | AA99: 0 | AB99: 0 | AC99: 0 | AD99: 0 | AE99: 0 | AF99: 0 | AG99: 0 | AH99: 0 | AI99: 0 | AJ99: 0 | AK99: 0 | AL99: 0 | AM99: 0 | AN99: 0 | AO99: 0 | AP99: 0 | AQ99: 0 | AR99: 0 | CD99: =SUM(E99:CC99) -> 2 | CE99: 97 | CF99: =VLOOKUP(CE99,'NOVATOS E INTERMEDIOS'!$B$3:$C$103,2,FALSE) -> RIONG TAE | CG99: =VLOOKUP(CF99,'NOVATOS E INTERMEDIOS'!$C$3:$CD$103,2,FALSE) -> -0
A100: -9.8e-07 | B100: 94 | C100: VILL GYM | D100: 2 | E100: 0 | F100: 2 | G100: 0 | H100: 0 | I100: 0 | J100: 0 | K100: 0 | L100: 0 | M100: 0 | N100: 0 | O100: 0 | P100: 0 | Q100: 0 | R100: 0 | S100: 0 | T100: 0 | U100: 0 | V100: 0 | W100: 0 | X100: 0 | Y100: 0 | Z100: 0 | AA100: 0 | AB100: 0 | AC100: 0 | AD100: 0 | AE100: 0 | AF100: 0 | AG100: 0 | AH100: 0 | AI100: 0 | AJ100: 0 | AK100: 0 | AL100: 0 | AM100: 0 | AN100: 0 | AO100: 0 | AP100: 0 | AQ100: 0 | AR100: 0 | CD100: 2 | CE100: 98 | CF100: =VLOOKUP(CE100,'NOVATOS E INTERMEDIOS'!$B$3:$C$103,2,FALSE) -> UNIVERSIDAD HIMISFERIOS | CG100: =VLOOKUP(CF100,'NOVATOS E INTERMEDIOS'!$C$3:$CD$103,2,FALSE) -> -0
A101: -9.9e-07 | B101: 49 | C101: YONG TIGER | D101: 25 | E101: 0 | F101: 6 | G101: 5 | H101: 0 | I101: 0 | J101: 0 | K101: 0 | L101: 0 | M101: 0 | N101: 0 | O101: 0 | P101: 0 | Q101: 0 | R101: 0 | S101: 0 | T101: 0 | U101: 0 | V101: 0 | W101: 5 | X101: 0 | Y101: 0 | Z101: 0 | AA101: 0 | AB101: 0 | AC101: 0 | AD101: 0 | AE101: 0 | AF101: 7 | AG101: 0 | AH101: 0 | AI101: 0 | AJ101: 0 | AK101: 0 | AL101: 0 | AM101: 0 | AN101: 0 | AO101: 0 | AP101: 2 | AQ101: 0 | AR101: 0 | CD101: 25 | CE101: 99 | CF101: =VLOOKUP(CE101,'NOVATOS E INTERMEDIOS'!$B$3:$C$103,2,FALSE) -> VALLE | CG101: =VLOOKUP(CF101,'NOVATOS E INTERMEDIOS'!$C$3:$CD$103,2,FALSE) -> -0
A102: -1e-06 | B102: 100 | D102: -0 | CD102: =SUM(E102:CC102) -> 0 | CE102: 100 | CF102: =VLOOKUP(CE102,'NOVATOS E INTERMEDIOS'!$B$3:$C$103,2,FALSE) -> 0 | CG102: =VLOOKUP(CF102,'NOVATOS E INTERMEDIOS'!$C$3:$CD$103,2,FALSE) -> 
A103: -1.01e-06 | B103: 101 | D103: -0 | CD103: 0 | CE103: 101 | CF103: =VLOOKUP(CE103,'NOVATOS E INTERMEDIOS'!$B$3:$C$103,2,FALSE) -> 0 | CG103: =VLOOKUP(CF103,'NOVATOS E INTERMEDIOS'!$C$3:$CD$103,2,FALSE) -> 
CD104: 0
CD105: 0
CD106: 0
CD107: 0

Sheet CLASIFICADOS
C1: PUNTUACION MEJORES CLUBES 2025 CLASIFICADOS
C2: CLUB | E2: USA. OPEN CHAMPIONS 14-16 FEBRERO 2025 COMBATE G2 | F2: USA. OPEN CHAMPIONS 14-16 FEBRERO 2025 POOMSAE G2 | G2: ECUADOR SERIES PORTOVIEJO 20-23 DE FEBRERO 2025 COMBATE CLASIFICADOS | H2: ECUADOR SERIES PORTOVIEJO 20-23 DE FEBRERO 2025 POOMSAE CLASIFICADOS | I2: CAMPEONATO NACIONAL CADETES PORTOVIEJO DEL 14-16 DE MARZO DEL 2025 | J2: CAMPEONATO NACIONAL JUNIOR PORTOVIEJO DEL 28-30 DE MARZO DEL 2025 | K2: CAMPEONATO PANAMERICANO QUERETARO DEL 3-6 DE ABRIL DEL 2025 | L2: PANAM SERIES QUERATARO DEL 3-6 DE ABRIL DEL 2025 POOMSAE | M2: PANAM SERIES QUERATARO DEL 3-6 DE ABRIL DEL 2025 COMBATE | N2: OPEN PANAMERICANO QUERETARO DEL 3-6 DE ABRIL DEL 2025 POOMSAE G1 | O2: CAMPEONATO NACIONAL JUVENIL U22 LOJA DEL 02-04 DE MAYO DEL 2025 | P2: CAMPEONATO MUNDIAL DE CATES DUBAI 09-11 DE MAYO DEL 2025 | Q2: COPA COREA QUITO 17 DE MAYO DEL 2025 CATEGORIA AVANZADOS | R2: JUEGOS MUNDIALES MASTER CHINA TIAPIE 24-28 DE MAYO DEL 2025 COMBATE | S2: JUEGOS MUNDIALES MASTER CHINA TIAPIE 24-28 DE MAYO DEL 2025 POOMSAE | T2: CAMPEONATO NACIONAL INFANTIL QUITO DEL 14-16 DE JUNIO DEL 2025 | U2: JUEGOS NACIONALES CICLO JUVENIL PORTOVIEJO 28 DE JUNIO AL 02 DE JULIO DEL 2025 | V2: JUEGOS PANAMERICANOS PARAGUAY DEL 15 AL 17 DE AGOSTO | W2: ECUADOR CHALLENGER QUITO 12 AL 14 DE SEPTIEMBRE DEL 2025 | X2: PRESIDENT CUP LIMA- PERU 04 AL 07 DE SEPTIEMBRE DEL 2025 | AW2: PUNTAJE TOTAL | AX2: UBICACIÓN | AY2: CLUB | AZ2: PUNTAJE
A3: -1e-08 | B3: =_xlfn.RANK.AVG(D3,$D$3:$D$103,0) -> 44 | C3: APOLO | D3: =AW3+A3*ROW() -> -0 | E3: 0 | F3: 0 | G3: 0 | H3: 0 | I3: 0 | J3: 0 | K3: 0 | L3: 0 | M3: 0 | N3: 0 | O3: 0 | P3: 0 | Q3: 0 | R3: 0 | S3: 0 | T3: 0 | U3: 0 | V3: 0 | AW3: =SUM(E3:AV3) -> 0 | AX3: 1 | AY3: =VLOOKUP(AX3,CLASIFICADOS!$B$3:$C$103,2,FALSE) -> SEUL | AZ3: =VLOOKUP(AY3,CLASIFICADOS!$C$3:$AW$103,2,FALSE) -> 172
A4: -2e-08 | B4: 24 | C4: ARES | D4: 16 | E4: 0 | F4: 0 | G4: 2 | H4: 0 | I4: 10 | J4: 0 | K4: 0 | L4: 0 | M4: 0 | N4: 0 | O4: 0 | P4: 0 | Q4: 4 | R4: 0 | S4: 0 | T4: 0 | U4: 0 | V4: 0 | AW4: 16 | AX4: =AX3+1 -> 2 | AY4: =VLOOKUP(AX4,CLASIFICADOS!$B$3:$C$103,2,FALSE) -> DEBAK TKD | AZ4: =VLOOKUP(AY4,CLASIFICADOS!$C$3:$AW$103,2,FALSE) -> 162
A5: -3e-08 | B5: 45 | C5: ATLAS CLUB | D5: -0 | E5: 0 | F5: 0 | G5: 0 | H5: 0 | I5: 0 | J5: 0 | K5: 0 | L5: 0 | M5: 0 | N5: 0 | O5: 0 | P5: 0 | Q5: 0 | R5: 0 | S5: 0 | T5: 0 | U5: 0 | V5: 0 | AW5: 0 | AX5: 3 | AY5: =VLOOKUP(AX5,CLASIFICADOS!$B$3:$C$103,2,FALSE) -> MERCENARIOS | AZ5: =VLOOKUP(AY5,CLASIFICADOS!$C$3:$AW$103,2,FALSE) -> 126
A6: -4e-08 | B6: 14 | C6: BAEKJUL BG | D6: 36 | E6: 0 | F6: 0 | G6: 18 | H6: 0 | I6: 8 | J6: 0 | K6: 0 | L6: 0 | M6: 0 | N6: 0 | O6: 0 | P6: 0 | Q6: 4 | R6: 0 | S6: 0 | T6: 6 | U6: 0 | V6: 0 | AW6: 36 | AX6: 4 | AY6: =VLOOKUP(AX6,CLASIFICADOS!$B$3:$C$103,2,FALSE) -> DECIAP | AZ6: =VLOOKUP(AY6,CLASIFICADOS!$C$3:$AW$103,2,FALSE) -> 114
A7: -5e-08 | B7: 12 | C7: BAS PANTHER | D7: 41 | E7: 0 | F7: 0 | G7: 8 | H7: 2 | I7: 15 | J7: 8 | K7: 0 | L7: 0 | M7: 0 | N7: 0 | O7: 0 | P7: 0 | Q7: 2 | R7: 0 | S7: 0 | T7: 6 | U7: 0 | V7: 0 | AW7: 41 | AX7: 5 | AY7: =VLOOKUP(AX7,CLASIFICADOS!$B$3:$C$103,2,FALSE) -> S.D.CENTRAL | AZ7: =VLOOKUP(AY7,CLASIFICADOS!$C$3:$AW$103,2,FALSE) -> 111
A8: -6e-08 | B8: 7 | C8: BORJA´S LIONS | D8: 88 | E8: 0 | F8: 0 | G8: 2 | H8: 0 | I8: 16 | J8: 30 | K8: 0 | L8: 0 | M8: 0 | N8: 0 | O8: 0 | P8: 0 | Q8: 6 | R8: 0 | S8: 0 | T8: 34 | U8: 0 | V8: 0 | AW8: 88 | AX8: 6 | AY8: =VLOOKUP(AX8,CLASIFICADOS!$B$3:$C$103,2,FALSE) -> KORYO | AZ8: =VLOOKUP(AY8,CLASIFICADOS!$C$3:$AW$103,2,FALSE) -> 92
A9: -7e-08 | B9: 46 | C9: BLUE DRAGONS | D9: -0 | E9: 0 | F9: 0 | G9: 0 | H9: 0 | I9: 0 | J9: 0 | K9: 0 | L9: 0 | M9: 0 | N9: 0 | O9: 0 | P9: 0 | Q9: 0 | R9: 0 | S9: 0 | T9: 0 | U9: 0 | V9: 0 | AW9: 0 | AX9: 7 | AY9: =VLOOKUP(AX9,CLASIFICADOS!$B$3:$C$103,2,FALSE) -> BORJA´S LIONS | AZ9: =VLOOKUP(AY9,CLASIFICADOS!$C$3:$AW$103,2,FALSE) -> 88
A10: -8e-08 | B10: 47 | C10: CIUDAD DE QUITO | D10: -0 | E10: 0 | F10: 0 | G10: 0 | H10: 0 | I10: 0 | J10: 0 | K10: 0 | L10: 0 | M10: 0 | N10: 0 | O10: 0 | P10: 0 | Q10: 0 | R10: 0 | S10: 0 | T10: 0 | U10: 0 | V10: 0 | AW10: 0 | AX10: 8 | AY10: =VLOOKUP(AX10,CLASIFICADOS!$B$3:$C$103,2,FALSE) -> HAN SU | AZ10: =VLOOKUP(AY10,CLASIFICADOS!$C$3:$AW$103,2,FALSE) -> 56
A11: -9e-08 | B11: 48 | C11: CONDOR | D11: -0 | E11: 0 | F11: 0 | G11: 0 | H11: 0 | I11: 0 | J11: 0 | K11: 0 | L11: 0 | M11: 0 | N11: 0 | O11: 0 | P11: 0 | Q11: 0 | R11: 0 | S11: 0 | T11: 0 | U11: 0 | V11: 0 | AW11: 0 | AX11: 9 | AY11: =VLOOKUP(AX11,CLASIFICADOS!$B$3:$C$103,2,FALSE) -> DRACO | AZ11: =VLOOKUP(AY11,CLASIFICADOS!$C$3:$AW$103,2,FALSE) -> 55
A12: -1e-07 | B12: 49 | C12: CLUB MIKIDO | D12: -0 | E12: 0 | F12: 0 | G12: 0 | H12: 0 | I12: 0 | J12: 0 | K12: 0 | L12: 0 | M12: 0 | N12: 0 | O12: 0 | P12: 0 | Q12: 0 | R12: 0 | S12: 0 | T12: 0 | U12: 0 | V12: 0 | AW12: 0 | AX12: 10 | AY12: =VLOOKUP(AX12,CLASIFICADOS!$B$3:$C$103,2,FALSE) -> YONG TIGER | AZ12: =VLOOKUP(AY12,CLASIFICADOS!$C$3:$AW$103,2,FALSE) -> 55
A13: -1.1e-07 | B13: 50 | C13: CHEN HUU | D13: -0 | E13: 0 | F13: 0 | G13: 0 | H13: 0 | I13: 0 | J13: 0 | K13: 0 | L13: 0 | M13: 0 | N13: 0 | O13: 0 | P13: 0 | Q13: 0 | R13: 0 | S13: 0 | T13: 0 | U13: 0 | V13: 0 | AW13: 0 | AX13: 11 | AY13: =VLOOKUP(AX13,CLASIFICADOS!$B$3:$C$103,2,FALSE) -> KO AMERICA | AZ13: =VLOOKUP(AY13,CLASIFICADOS!$C$3:$AW$103,2,FALSE) -> 43
A14: -1.2e-07 | B14: 51 | C14: CHONKWON | D14: -0 | E14: 0 | F14: 0 | G14: 0 | H14: 0 | I14: 0 | J14: 0 | K14: 0 | L14: 0 | M14: 0 | N14: 0 | O14: 0 | P14: 0 | Q14: 0 | R14: 0 | S14: 0 | T14: 0 | U14: 0 | V14: 0 | AW14: 0 | AX14: 12 | AY14: =VLOOKUP(AX14,CLASIFICADOS!$B$3:$C$103,2,FALSE) -> BAS PANTHER | AZ14: =VLOOKUP(AY14,CLASIFICADOS!$C$3:$AW$103,2,FALSE) -> 41
A15: -1.3e-07 | B15: 52 | C15: CHUNG SONG | D15: -0 | E15: 0 | F15: 0 | G15: 0 | H15: 0 | I15: 0 | J15: 0 | K15: 0 | L15: 0 | M15: 0 | N15: 0 | O15: 0 | P15: 0 | Q15: 0 | R15: 0 | S15: 0 | T15: 0 | U15: 0 | V15: 0 | AW15: 0 | AX15: 13 | AY15: =VLOOKUP(AX15,CLASIFICADOS!$B$3:$C$103,2,FALSE) -> TAEKWONDO TRAINING CENTER | AZ15: =VLOOKUP(AY15,CLASIFICADOS!$C$3:$AW$103,2,FALSE) -> 38
A16: -1.4e-07 | B16: 20 | C16: CHAMPIONS FOR LIFE | D16: 22 | E16: 0 | F16: 0 | G16: 0 | H16: 0 | I16: 0 | J16: 0 | K16: 0 | L16: 0 | M16: 0 | N16: 0 | O16: 10 | P16: 0 | Q16: 0 | R16: 0 | S16: 0 | T16: 0 | U16: 12 | V16: 0 | AW16: 22 | AX16: 14 | AY16: =VLOOKUP(AX16,CLASIFICADOS!$B$3:$C$103,2,FALSE) -> BAEKJUL BG | AZ16: =VLOOKUP(AY16,CLASIFICADOS!$C$3:$AW$103,2,FALSE) -> 36
A17: -1.5e-07 | B17: 35 | C17: DAIGORO | D17: 2 | E17: 0 | F17: 0 | G17: 0 | H17: 0 | I17: 0 | J17: 0 | K17: 0 | L17: 0 | M17: 0 | N17: 0 | O17: 0 | P17: 0 | Q17: 2 | R17: 0 | S17: 0 | T17: 0 | U17: 0 | V17: 0 | AW17: 2 | AX17: 15 | AY17: =VLOOKUP(AX17,CLASIFICADOS!$B$3:$C$103,2,FALSE) -> ILYOP MP | AZ17: =VLOOKUP(AY17,CLASIFICADOS!$C$3:$AW$103,2,FALSE) -> 36
A18: -1.6e-07 | B18: 2 | C18: DEBAK TKD | D18: 162 | E18: 0 | F18: 6 | G18: 10 | H18: 14 | I18: 0 | J18: 0 | K18: 0 | L18: 0 | M18: 0 | N18: 17 | O18: 8 | P18: 0 | Q18: 10 | R18: 0 | S18: 85 | T18: 12 | U18: 0 | V18: 0 | AW18: 162 | AX18: 16 | AY18: =VLOOKUP(AX18,CLASIFICADOS!$B$3:$C$103,2,FALSE) -> ROJAS IRON FIRST | AZ18: =VLOOKUP(AY18,CLASIFICADOS!$C$3:$AW$103,2,FALSE) -> 36
A19: -1.7e-07 | B19: 4 | C19: DECIAP | D19: 114 | E19: 0 | F19: 0 | G19: 4 | H19: 6 | I19: 14 | J19: 8 | K19: 12 | L19: 0 | M19: 3 | N19: 0 | O19: 7 | P19: 30 | Q19: 2 | R19: 0 | S19: 0 | T19: 6 | U19: 12 | V19: 10 | AW19: 114 | AX19: 17 | AY19: =VLOOKUP(AX19,CLASIFICADOS!$B$3:$C$103,2,FALSE) -> TAE SHO KU | AZ19: =VLOOKUP(AY19,CLASIFICADOS!$C$3:$AW$103,2,FALSE) -> 27
A20: -1.8e-07 | B20: 36 | C20: DOJAN TAEKWONDO MELO | D20: 2 | E20: 0 | F20: 0 | G20: 0 | H20: 2 | I20: 0 | J20: 0 | K20: 0 | L20: 0 | M20: 0 | N20: 0 | O20: 0 | P20: 0 | Q20: 0 | R20: 0 | S20: 0 | T20: 0 | U20: 0 | V20: 0 | AW20: 2 | AX20: 18 | AY20: =VLOOKUP(AX20,CLASIFICADOS!$B$3:$C$103,2,FALSE) -> ECUACUBA | AZ20: =VLOOKUP(AY20,CLASIFICADOS!$C$3:$AW$103,2,FALSE) -> 26
A21: -1.9e-07 | B21: 9 | C21: DRACO | D21: 55 | E21: 0 | F21: 0 | G21: 8 | H21: 0 | I21: 0 | J21: 19 | K21: 0 | L21: 0 | M21: 0 | N21: 0 | O21: 0 | P21: 0 | Q21: 4 | R21: 0 | S21: 0 | T21: 24 | U21: 0 | V21: 0 | AW21: 55 | AX21: 19 | AY21: =VLOOKUP(AX21,CLASIFICADOS!$B$3:$C$103,2,FALSE) -> SIM JANG TEAM | AZ21: =VLOOKUP(AY21,CLASIFICADOS!$C$3:$AW$103,2,FALSE) -> 26
A22: -2e-07 | B22: 53 | C22: DRAGON GYM | D22: -0 | E22: 0 | F22: 0 | G22: 0 | H22: 0 | I22: 0 | J22: 0 | K22: 0 | L22: 0 | M22: 0 | N22: 0 | O22: 0 | P22: 0 | Q22: 0 | R22: 0 | S22: 0 | T22: 0 | U22: 0 | V22: 0 | AW22: 0 | AX22: 20 | AY22: =VLOOKUP(AX22,CLASIFICADOS!$B$3:$C$103,2,FALSE) -> CHAMPIONS FOR LIFE | AZ22: =VLOOKUP(AY22,CLASIFICADOS!$C$3:$AW$103,2,FALSE) -> 22
A23: -2.1e-07 | B23: 54 | C23: DRAGON LEE GYM | D23: -0 | E23: 0 | F23: 0 | G23: 0 | H23: 0 | I23: 0 | J23: 0 | K23: 0 | L23: 0 | M23: 0 | N23: 0 | O23: 0 | P23: 0 | Q23: 0 | R23: 0 | S23: 0 | T23: 0 | U23: 0 | V23: 0 | AW23: 0 | AX23: 21 | AY23: =VLOOKUP(AX23,CLASIFICADOS!$B$3:$C$103,2,FALSE) -> LIGA CANTONAL MEJIA | AZ23: =VLOOKUP(AY23,CLASIFICADOS!$C$3:$AW$103,2,FALSE) -> 20
A24: -2.2e-07 | B24: 18 | C24: ECUACUBA | D24: 26 | E24: 0 | F24: 0 | G24: 0 | H24: 0 | I24: 7 | J24: 0 | K24: 0 | L24: 0 | M24: 0 | N24: 0 | O24: 0 | P24: 0 | Q24: 2 | R24: 0 | S24: 0 | T24: 17 | U24: 0 | V24: 0 | AW24: 26 | AX24: 22 | AY24: =VLOOKUP(AX24,CLASIFICADOS!$B$3:$C$103,2,FALSE) -> TAE DO ACADEMY | AZ24: =VLOOKUP(AY24,CLASIFICADOS!$C$3:$AW$103,2,FALSE) -> 20
A25: -2.3e-07 | B25: 55 | C25: ECUADOR | D25: -0 | E25: 0 | F25: 0 | G25: 0 | H25: 0 | I25: 0 | J25: 0 | K25: 0 | L25: 0 | M25: 0 | N25: 0 | O25: 0 | P25: 0 | Q25: 0 | R25: 0 | S25: 0 | T25: 0 | U25: 0 | V25: 0 | AW25: 0 | AX25: 23 | AY25: =VLOOKUP(AX25,CLASIFICADOS!$B$3:$C$103,2,FALSE) -> KUNGAN DUL | AZ25: =VLOOKUP(AY25,CLASIFICADOS!$C$3:$AW$103,2,FALSE) -> 18
A26: -2.4e-07 | B26: 56 | C26: EQUILIBRIO | D26: -0 | E26: 0 | F26: 0 | G26: 0 | H26: 0 | I26: 0 | J26: 0 | K26: 0 | L26: 0 | M26: 0 | N26: 0 | O26: 0 | P26: 0 | Q26: 0 | R26: 0 | S26: 0 | T26: 0 | U26: 0 | V26: 0 | AW26: 0 | AX26: 24 | AY26: =VLOOKUP(AX26,CLASIFICADOS!$B$3:$C$103,2,FALSE) -> ARES | AZ26: =VLOOKUP(AY26,CLASIFICADOS!$C$3:$AW$103,2,FALSE) -> 16
A27: -2.5e-07 | B27: 57 | C27: ESPE | D27: -0 | E27: 0 | F27: 0 | G27: 0 | H27: 0 | I27: 0 | J27: 0 | K27: 0 | L27: 0 | M27: 0 | N27: 0 | O27: 0 | P27: 0 | Q27: 0 | R27: 0 | S27: 0 | T27: 0 | U27: 0 | V27: 0 | AW27: 0 | AX27: 25 | AY27: =VLOOKUP(AX27,CLASIFICADOS!$B$3:$C$103,2,FALSE) -> LOS PUMAS | AZ27: =VLOOKUP(AY27,CLASIFICADOS!$C$3:$AW$103,2,FALSE) -> 13
A28: -2.6e-07 | B28: 37 | C28: FRANG | D28: 2 | E28: 0 | F28: 0 | G28: 0 | H28: 0 | I28: 0 | J28: 0 | K28: 0 | L28: 0 | M28: 0 | N28: 0 | O28: 0 | P28: 0 | Q28: 2 | R28: 0 | S28: 0 | T28: 0 | U28: 0 | V28: 0 | AW28: 2 | AX28: 26 | AY28: =VLOOKUP(AX28,CLASIFICADOS!$B$3:$C$103,2,FALSE) -> FIRST CLASS CALDERON | AZ28: =VLOOKUP(AY28,CLASIFICADOS!$C$3:$AW$103,2,FALSE) -> 12
A29: -2.7e-07 | B29: 58 | C29: FIT KWON DO | D29: -0 | E29: 0 | F29: 0 | G29: 0 | H29: 0 | I29: 0 | J29: 0 | K29: 0 | L29: 0 | M29: 0 | N29: 0 | O29: 0 | P29: 0 | Q29: 0 | R29: 0 | S29: 0 | T29: 0 | U29: 0 | V29: 0 | AW29: 0 | AX29: 27 | AY29: =VLOOKUP(AX29,CLASIFICADOS!$B$3:$C$103,2,FALSE) -> JI DO KWAN | AZ29: =VLOOKUP(AY29,CLASIFICADOS!$C$3:$AW$103,2,FALSE) -> 12
A30: -2.8e-07 | B30: 26 | C30: FIRST CLASS CALDERON | D30: 12 | E30: 0 | F30: 0 | G30: 0 | H30: 0 | I30: 6 | J30: 0 | K30: 0 | L30: 0 | M30: 0 | N30: 0 | O30: 0 | P30: 0 | Q30: 6 | R30: 0 | S30: 0 | T30: 0 | U30: 0 | V30: 0 | AW30: 12 | AX30: 28 | AY30: =VLOOKUP(AX30,CLASIFICADOS!$B$3:$C$103,2,FALSE) -> KYORUGUI GYM | AZ30: =VLOOKUP(AY30,CLASIFICADOS!$C$3:$AW$103,2,FALSE) -> 12
A31: -2.9e-07 | B31: 59 | C31: FURIA NEGRA | D31: -0 | E31: 0 | F31: 0 | G31: 0 | H31: 0 | I31: 0 | J31: 0 | K31: 0 | L31: 0 | M31: 0 | N31: 0 | O31: 0 | P31: 0 | Q31: 0 | R31: 0 | S31: 0 | T31: 0 | U31: 0 | V31: 0 | AW31: 0 | AX31: 29 | AY31: =VLOOKUP(AX31,CLASIFICADOS!$B$3:$C$103,2,FALSE) -> MARCIAL CLUB GRANDA | AZ31: =VLOOKUP(AY31,CLASIFICADOS!$C$3:$AW$103,2,FALSE) -> 8
A32: -3e-07 | B32: 60 | C32: GRAN MASTER | D32: -0 | E32: 0 | F32: 0 | G32: 0 | H32: 0 | I32: 0 | J32: 0 | K32: 0 | L32: 0 | M32: 0 | N32: 0 | O32: 0 | P32: 0 | Q32: 0 | R32: 0 | S32: 0 | T32: 0 | U32: 0 | V32: 0 | AW32: 0 | AX32: 30 | AY32: =VLOOKUP(AX32,CLASIFICADOS!$B$3:$C$103,2,FALSE) -> SHOGUN | AZ32: =VLOOKUP(AY32,CLASIFICADOS!$C$3:$AW$103,2,FALSE) -> 8
A33: -3.1e-07 | B33: 61 | C33: GOYANG - IDEUL | D33: -0 | E33: 0 | F33: 0 | G33: 0 | H33: 0 | I33: 0 | J33: 0 | K33: 0 | L33: 0 | M33: 0 | N33: 0 | O33: 0 | P33: 0 | Q33: 0 | R33: 0 | S33: 0 | T33: 0 | U33: 0 | V33: 0 | AW33: 0 | AX33: =AX32+1 -> 31 | AY33: =VLOOKUP(AX33,CLASIFICADOS!$B$3:$C$103,2,FALSE) -> LEON | AZ33: =VLOOKUP(AY33,CLASIFICADOS!$C$3:$AW$103,2,FALSE) -> 6
A34: -3.2e-07 | B34: 8 | C34: HAN SU | D34: 56 | E34: 0 | F34: 0 | G34: 2 | H34: 0 | I34: 0 | J34: 0 | K34: 0 | L34: 0 | M34: 0 | N34: 0 | O34: 0 | P34: 0 | Q34: 8 | R34: 0 | S34: 0 | T34: 46 | U34: 0 | V34: 0 | AW34: 56 | AX34: 32 | AY34: =VLOOKUP(AX34,CLASIFICADOS!$B$3:$C$103,2,FALSE) -> RYONG TAE | AZ34: =VLOOKUP(AY34,CLASIFICADOS!$C$3:$AW$103,2,FALSE) -> 6
A35: -3.3e-07 | B35: =_xlfn.RANK.AVG(D35,$D$3:$D$103,0) -> 62 | C35: HIMCHARI DONJANG | D35: =AW35+A35*ROW() -> -0 | E35: 0 | F35: 0 | G35: 0 | H35: 0 | I35: 0 | J35: 0 | K35: 0 | L35: 0 | M35: 0 | N35: 0 | O35: 0 | P35: 0 | Q35: 0 | R35: 0 | S35: 0 | T35: 0 | U35: 0 | V35: 0 | AW35: =SUM(E35:AV35) -> 0 | AX35: 33 | AY35: =VLOOKUP(AX35,CLASIFICADOS!$B$3:$C$103,2,FALSE) -> SAN SEBASTIAN | AZ35: =VLOOKUP(AY35,CLASIFICADOS!$C$3:$AW$103,2,FALSE) -> 6
A36: -3.4e-07 | B36: 38 | C36: HUAN TOP GYM | D36: 2 | E36: 0 | F36: 0 | G36: 2 | H36: 0 | I36: 0 | J36: 0 | K36: 0 | L36: 0 | M36: 0 | N36: 0 | O36: 0 | P36: 0 | Q36: 0 | R36: 0 | S36: 0 | T36: 0 | U36: 0 | V36: 0 | AW36: 2 | AX36: 34 | AY36: =VLOOKUP(AX36,CLASIFICADOS!$B$3:$C$103,2,FALSE) -> TAE BAEK ECUADOR | AZ36: =VLOOKUP(AY36,CLASIFICADOS!$C$3:$AW$103,2,FALSE) -> 6
A37: -3.5e-07 | B37: 15 | C37: ILYOP MP | D37: 36 | E37: 2 | F37: 0 | G37: 4 | H37: 0 | I37: 0 | J37: 0 | K37: 0 | L37: 0 | M37: 0 | N37: 0 | O37: 8 | P37: 0 | Q37: 12 | R37: 0 | S37: 0 | T37: 0 | U37: 10 | V37: 0 | AW37: 36 | AX37: 35 | AY37: =VLOOKUP(AX37,CLASIFICADOS!$B$3:$C$103,2,FALSE) -> DAIGORO | AZ37: =VLOOKUP(AY37,CLASIFICADOS!$C$3:$AW$103,2,FALSE) -> 2
A38: -3.6e-07 | B38: 27 | C38: JI DO KWAN | D38: 12 | E38: 0 | F38: 0 | G38: 2 | H38: 0 | I38: 0 | J38: 0 | K38: 0 | L38: 0 | M38: 0 | N38: 0 | O38: 0 | P38: 0 | Q38: 0 | R38: 0 | S38: 0 | T38: 10 | U38: 0 | V38: 0 | AW38: 12 | AX38: 36 | AY38: =VLOOKUP(AX38,CLASIFICADOS!$B$3:$C$103,2,FALSE) -> DOJAN TAEKWONDO MELO | AZ38: =VLOOKUP(AY38,CLASIFICADOS!$C$3:$AW$103,2,FALSE) -> 2
A39: -3.7e-07 | B39: 39 | C39: JOSEON LEGACY | D39: 2 | E39: 0 | F39: 0 | G39: 0 | H39: 0 | I39: 0 | J39: 0 | K39: 0 | L39: 0 | M39: 0 | N39: 0 | O39: 0 | P39: 0 | Q39: 2 | R39: 0 | S39: 0 | T39: 0 | U39: 0 | V39: 0 | AW39: 2 | AX39: 37 | AY39: =VLOOKUP(AX39,CLASIFICADOS!$B$3:$C$103,2,FALSE) -> FRANG | AZ39: =VLOOKUP(AY39,CLASIFICADOS!$C$3:$AW$103,2,FALSE) -> 2
A40: -3.8e-07 | B40: 63 | C40: JR SPORT | D40: -0 | E40: 0 | F40: 0 | G40: 0 | H40: 0 | I40: 0 | J40: 0 | K40: 0 | L40: 0 | M40: 0 | N40: 0 | O40: 0 | P40: 0 | Q40: 0 | R40: 0 | S40: 0 | T40: 0 | U40: 0 | V40: 0 | AW40: 0 | AX40: 38 | AY40: =VLOOKUP(AX40,CLASIFICADOS!$B$3:$C$103,2,FALSE) -> HUAN TOP GYM | AZ40: =VLOOKUP(AY40,CLASIFICADOS!$C$3:$AW$103,2,FALSE) -> 2
A41: -3.9e-07 | B41: 64 | C41: JUVENTUS | D41: -0 | E41: 0 | F41: 0 | G41: 0 | H41: 0 | I41: 0 | J41: 0 | K41: 0 | L41: 0 | M41: 0 | N41: 0 | O41: 0 | P41: 0 | Q41: 0 | R41: 0 | S41: 0 | T41: 0 | U41: 0 | V41: 0 | AW41: 0 | AX41: 39 | AY41: =VLOOKUP(AX41,CLASIFICADOS!$B$3:$C$103,2,FALSE) -> JOSEON LEGACY | AZ41: =VLOOKUP(AY41,CLASIFICADOS!$C$3:$AW$103,2,FALSE) -> 2
A42: -4e-07 | B42: 40 | C42: JERATHEL | D42: 2 | E42: 0 | F42: 0 | G42: 0 | H42: 0 | I42: 0 | J42: 0 | K42: 0 | L42: 0 | M42: 0 | N42: 0 | O42: 0 | P42: 0 | Q42: 2 | R42: 0 | S42: 0 | T42: 0 | U42: 0 | V42: 0 | AW42: 2 | AX42: 40 | AY42: =VLOOKUP(AX42,CLASIFICADOS!$B$3:$C$103,2,FALSE) -> JERATHEL | AZ42: =VLOOKUP(AY42,CLASIFICADOS!$C$3:$AW$103,2,FALSE) -> 2
A43: -4.1e-07 | B43: 11 | C43: KO AMERICA | D43: 43 | E43: 0 | F43: 0 | G43: 6 | H43: 0 | I43: 0 | J43: 13 | K43: 0 | L43: 0 | M43: 0 | N43: 0 | O43: 14 | P43: 0 | Q43: 0 | R43: 0 | S43: 0 | T43: 0 | U43: 10 | V43: 0 | AW43: 43 | AX43: 41 | AY43: =VLOOKUP(AX43,CLASIFICADOS!$B$3:$C$103,2,FALSE) -> SAN FRANCISCO TIGRES | AZ43: =VLOOKUP(AY43,CLASIFICADOS!$C$3:$AW$103,2,FALSE) -> 2
A44: -4.2e-07 | B44: 65 | C44: KOREAN DRAGON | D44: -0 | E44: 0 | F44: 0 | G44: 0 | H44: 0 | I44: 0 | J44: 0 | K44: 0 | L44: 0 | M44: 0 | N44: 0 | O44: 0 | P44: 0 | Q44: 0 | R44: 0 | S44: 0 | T44: 0 | U44: 0 | V44: 0 | AW44: 0 | AX44: 42 | AY44: =VLOOKUP(AX44,CLASIFICADOS!$B$3:$C$103,2,FALSE) -> TAEKWONDO WOONG | AZ44: =VLOOKUP(AY44,CLASIFICADOS!$C$3:$AW$103,2,FALSE) -> 2
A45: -4.3e-07 | B45: 6 | C45: KORYO | D45: 92 | E45: 0 | F45: 0 | G45: 0 | H45: 0 | I45: 0 | J45: 0 | K45: 0 | L45: 0 | M45: 0 | N45: 0 | O45: 10 | P45: 0 | Q45: 0 | R45: 70 | S45: 0 | T45: 0 | U45: 12 | V45: 0 | AW45: 92 | AX45: 43 | AY45: =VLOOKUP(AX45,CLASIFICADOS!$B$3:$C$103,2,FALSE) -> TOTAL KOMBAT | AZ45: =VLOOKUP(AY45,CLASIFICADOS!$C$3:$AW$103,2,FALSE) -> 2
A46: -4.4e-07 | B46: 66 | C46: KUKKIKWON | D46: -0 | E46: 0 | F46: 0 | G46: 0 | H46: 0 | I46: 0 | J46: 0 | K46: 0 | L46: 0 | M46: 0 | N46: 0 | O46: 0 | P46: 0 | Q46: 0 | R46: 0 | S46: 0 | T46: 0 | U46: 0 | V46: 0 | AW46: 0 | AX46: 44 | AY46: =VLOOKUP(AX46,CLASIFICADOS!$B$3:$C$103,2,FALSE) -> APOLO | AZ46: =VLOOKUP(AY46,CLASIFICADOS!$C$3:$AW$103,2,FALSE) -> -0
A47: -4.5e-07 | B47: 23 | C47: KUNGAN DUL | D47: 18 | E47: 0 | F47: 0 | G47: 2 | H47: 0 | I47: 0 | J47: 6 | K47: 0 | L47: 0 | M47: 0 | N47: 0 | O47: 0 | P47: 0 | Q47: 0 | R47: 0 | S47: 0 | T47: 10 | U47: 0 | V47: 0 | AW47: 18 | AX47: 45 | AY47: =VLOOKUP(AX47,CLASIFICADOS!$B$3:$C$103,2,FALSE) -> ATLAS CLUB | AZ47: =VLOOKUP(AY47,CLASIFICADOS!$C$3:$AW$103,2,FALSE) -> -0
A48: -4.6e-07 | B48: 28 | C48: KYORUGUI GYM | D48: 12 | E48: 0 | F48: 0 | G48: 6 | H48: 0 | I48: 0 | J48: 0 | K48: 0 | L48: 0 | M48: 0 | N48: 0 | O48: 0 | P48: 0 | Q48: 0 | R48: 0 | S48: 0 | T48: 6 | U48: 0 | V48: 0 | AW48: 12 | AX48: 46 | AY48: =VLOOKUP(AX48,CLASIFICADOS!$B$3:$C$103,2,FALSE) -> BLUE DRAGONS | AZ48: =VLOOKUP(AY48,CLASIFICADOS!$C$3:$AW$103,2,FALSE) -> -0
A49: -4.7e-07 | B49: 31 | C49: LEON | D49: 6 | E49: 0 | F49: 0 | G49: 0 | H49: 0 | I49: 0 | J49: 0 | K49: 0 | L49: 0 | M49: 0 | N49: 0 | O49: 6 | P49: 0 | Q49: 0 | R49: 0 | S49: 0 | T49: 0 | U49: 0 | V49: 0 | AW49: 6 | AX49: 47 | AY49: =VLOOKUP(AX49,CLASIFICADOS!$B$3:$C$103,2,FALSE) -> CIUDAD DE QUITO | AZ49: =VLOOKUP(AY49,CLASIFICADOS!$C$3:$AW$103,2,FALSE) -> -0
A50: -4.8e-07 | B50: 21 | C50: LIGA CANTONAL MEJIA | D50: 20 | E50: 0 | F50: 0 | G50: 0 | H50: 0 | I50: 0 | J50: 0 | K50: 0 | L50: 0 | M50: 0 | N50: 0 | O50: 0 | P50: 0 | Q50: 0 | R50: 0 | S50: 0 | T50: 20 | U50: 0 | V50: 0 | AW50: 20 | AX50: 48 | AY50: =VLOOKUP(AX50,CLASIFICADOS!$B$3:$C$103,2,FALSE) -> CONDOR | AZ50: =VLOOKUP(AY50,CLASIFICADOS!$C$3:$AW$103,2,FALSE) -> -0
A51: -4.9e-07 | B51: 67 | C51: LITHE BODY | D51: -0 | E51: 0 | F51: 0 | G51: 0 | H51: 0 | I51: 0 | J51: 0 | K51: 0 | L51: 0 | M51: 0 | N51: 0 | O51: 0 | P51: 0 | Q51: 0 | R51: 0 | S51: 0 | T51: 0 | U51: 0 | V51: 0 | AW51: 0 | AX51: 49 | AY51: =VLOOKUP(AX51,CLASIFICADOS!$B$3:$C$103,2,FALSE) -> CLUB MIKIDO | AZ51: =VLOOKUP(AY51,CLASIFICADOS!$C$3:$AW$103,2,FALSE) -> -0
A52: -5e-07 | B52: 68 | C52: LOBOS | D52: -0 | E52: 0 | F52: 0 | G52: 0 | H52: 0 | I52: 0 | J52: 0 | K52: 0 | L52: 0 | M52: 0 | N52: 0 | O52: 0 | P52: 0 | Q52: 0 | R52: 0 | S52: 0 | T52: 0 | U52: 0 | V52: 0 | AW52: 0 | AX52: 50 | AY52: =VLOOKUP(AX52,CLASIFICADOS!$B$3:$C$103,2,FALSE) -> CHEN HUU | AZ52: =VLOOKUP(AY52,CLASIFICADOS!$C$3:$AW$103,2,FALSE) -> -0
A53: -5.1e-07 | B53: 25 | C53: LOS PUMAS | D53: 13 | E53: 0 | F53: 0 | G53: 0 | H53: 0 | I53: 0 | J53: 7 | K53: 0 | L53: 0 | M53: 0 | N53: 0 | O53: 0 | P53: 0 | Q53: 6 | R53: 0 | S53: 0 | T53: 0 | U53: 0 | V53: 0 | AW53: 13 | AX53: 51 | AY53: =VLOOKUP(AX53,CLASIFICADOS!$B$3:$C$103,2,FALSE) -> CHONKWON | AZ53: =VLOOKUP(AY53,CLASIFICADOS!$C$3:$AW$103,2,FALSE) -> -0
A54: -5.2e-07 | B54: 69 | C54: MASTER HOME | D54: -0 | E54: 0 | F54: 0 | G54: 0 | H54: 0 | I54: 0 | J54: 0 | K54: 0 | L54: 0 | M54: 0 | N54: 0 | O54: 0 | P54: 0 | Q54: 0 | R54: 0 | S54: 0 | T54: 0 | U54: 0 | V54: 0 | AW54: 0 | AX54: 52 | AY54: =VLOOKUP(AX54,CLASIFICADOS!$B$3:$C$103,2,FALSE) -> CHUNG SONG | AZ54: =VLOOKUP(AY54,CLASIFICADOS!$C$3:$AW$103,2,FALSE) -> -0
A55: -5.3e-07 | B55: 29 | C55: MARCIAL CLUB GRANDA | D55: 8 | E55: 0 | F55: 0 | G55: 0 | H55: 0 | I55: 0 | J55: 0 | K55: 0 | L55: 0 | M55: 0 | N55: 0 | O55: 0 | P55: 0 | Q55: 0 | R55: 0 | S55: 0 | T55: 8 | U55: 0 | V55: 0 | AW55: 8 | AX55: 53 | AY55: =VLOOKUP(AX55,CLASIFICADOS!$B$3:$C$103,2,FALSE) -> DRAGON GYM | AZ55: =VLOOKUP(AY55,CLASIFICADOS!$C$3:$AW$103,2,FALSE) -> -0
A56: -5.4e-07 | B56: 3 | C56: MERCENARIOS | D56: 126 | E56: 0 | F56: 0 | G56: 2 | H56: 2 | I56: 23 | J56: 10 | K56: 12 | L56: 0 | M56: 0 | N56: 0 | O56: 0 | P56: 30 | Q56: 10 | R56: 0 | S56: 0 | T56: 37 | U56: 0 | V56: 0 | AW56: 126 | AX56: 54 | AY56: =VLOOKUP(AX56,CLASIFICADOS!$B$3:$C$103,2,FALSE) -> DRAGON LEE GYM | AZ56: =VLOOKUP(AY56,CLASIFICADOS!$C$3:$AW$103,2,FALSE) -> -0
A57: -5.5e-07 | B57: 70 | C57: MILENIUM | D57: -0 | E57: 0 | F57: 0 | G57: 0 | H57: 0 | I57: 0 | J57: 0 | K57: 0 | L57: 0 | M57: 0 | N57: 0 | O57: 0 | P57: 0 | Q57: 0 | R57: 0 | S57: 0 | T57: 0 | U57: 0 | V57: 0 | AW57: 0 | AX57: 55 | AY57: =VLOOKUP(AX57,CLASIFICADOS!$B$3:$C$103,2,FALSE) -> ECUADOR | AZ57: =VLOOKUP(AY57,CLASIFICADOS!$C$3:$AW$103,2,FALSE) -> -0
A58: -5.6e-07 | B58: 71 | C58: MICHAY DO | D58: -0 | E58: 0 | F58: 0 | G58: 0 | H58: 0 | I58: 0 | J58: 0 | K58: 0 | L58: 0 | M58: 0 | N58: 0 | O58: 0 | P58: 0 | Q58: 0 | R58: 0 | S58: 0 | T58: 0 | U58: 0 | V58: 0 | AW58: 0 | AX58: 56 | AY58: =VLOOKUP(AX58,CLASIFICADOS!$B$3:$C$103,2,FALSE) -> EQUILIBRIO | AZ58: =VLOOKUP(AY58,CLASIFICADOS!$C$3:$AW$103,2,FALSE) -> -0
A59: -5.7e-07 | B59: 72 | C59: MINOTAUROS | D59: -0 | E59: 0 | F59: 0 | G59: 0 | H59: 0 | I59: 0 | J59: 0 | K59: 0 | L59: 0 | M59: 0 | N59: 0 | O59: 0 | P59: 0 | Q59: 0 | R59: 0 | S59: 0 | T59: 0 | U59: 0 | V59: 0 | AW59: 0 | AX59: 57 | AY59: =VLOOKUP(AX59,CLASIFICADOS!$B$3:$C$103,2,FALSE) -> ESPE | AZ59: =VLOOKUP(AY59,CLASIFICADOS!$C$3:$AW$103,2,FALSE) -> -0
A60: -5.8e-07 | B60: 73 | C60: MIT-TKD | D60: -0 | E60: 0 | F60: 0 | G60: 0 | H60: 0 | I60: 0 | J60: 0 | K60: 0 | L60: 0 | M60: 0 | N60: 0 | O60: 0 | P60: 0 | Q60: 0 | R60: 0 | S60: 0 | T60: 0 | U60: 0 | V60: 0 | AW60: 0 | AX60: 58 | AY60: =VLOOKUP(AX60,CLASIFICADOS!$B$3:$C$103,2,FALSE) -> FIT KWON DO | AZ60: =VLOOKUP(AY60,CLASIFICADOS!$C$3:$AW$103,2,FALSE) -> -0
A61: -5.9e-07 | B61: 74 | C61: PALADINES | D61: -0 | E61: 0 | F61: 0 | G61: 0 | H61: 0 | I61: 0 | J61: 0 | K61: 0 | L61: 0 | M61: 0 | N61: 0 | O61: 0 | P61: 0 | Q61: 0 | R61: 0 | S61: 0 | T61: 0 | U61: 0 | V61: 0 | AW61: 0 | AX61: 59 | AY61: =VLOOKUP(AX61,CLASIFICADOS!$B$3:$C$103,2,FALSE) -> FURIA NEGRA | AZ61: =VLOOKUP(AY61,CLASIFICADOS!$C$3:$AW$103,2,FALSE) -> -0
A62: -6e-07 | B62: 75 | C62: PANDADEMON | D62: -0 | E62: 0 | F62: 0 | G62: 0 | H62: 0 | I62: 0 | J62: 0 | K62: 0 | L62: 0 | M62: 0 | N62: 0 | O62: 0 | P62: 0 | Q62: 0 | R62: 0 | S62: 0 | T62: 0 | U62: 0 | V62: 0 | AW62: 0 | AX62: 60 | AY62: =VLOOKUP(AX62,CLASIFICADOS!$B$3:$C$103,2,FALSE) -> GRAN MASTER | AZ62: =VLOOKUP(AY62,CLASIFICADOS!$C$3:$AW$103,2,FALSE) -> -0
A63: -6.1e-07 | B63: 76 | C63: PIONEROS FORTI | D63: -0 | E63: 0 | F63: 0 | G63: 0 | H63: 0 | I63: 0 | J63: 0 | K63: 0 | L63: 0 | M63: 0 | N63: 0 | O63: 0 | P63: 0 | Q63: 0 | R63: 0 | S63: 0 | T63: 0 | U63: 0 | V63: 0 | AW63: 0 | AX63: 61 | AY63: =VLOOKUP(AX63,CLASIFICADOS!$B$3:$C$103,2,FALSE) -> GOYANG - IDEUL | AZ63: =VLOOKUP(AY63,CLASIFICADOS!$C$3:$AW$103,2,FALSE) -> -0
A64: -6.2e-07 | B64: 77 | C64: PIONEROS MEJIA | D64: -0 | E64: 0 | F64: 0 | G64: 0 | H64: 0 | I64: 0 | J64: 0 | K64: 0 | L64: 0 | M64: 0 | N64: 0 | O64: 0 | P64: 0 | Q64: 0 | R64: 0 | S64: 0 | T64: 0 | U64: 0 | V64: 0 | AW64: 0 | AX64: 62 | AY64: =VLOOKUP(AX64,CLASIFICADOS!$B$3:$C$103,2,FALSE) -> HIMCHARI DONJANG | AZ64: =VLOOKUP(AY64,CLASIFICADOS!$C$3:$AW$103,2,FALSE) -> -0
A65: -6.3e-07 | B65: 78 | C65: PYONG YANG | D65: -0 | E65: 0 | F65: 0 | G65: 0 | H65: 0 | I65: 0 | J65: 0 | K65: 0 | L65: 0 | M65: 0 | N65: 0 | O65: 0 | P65: 0 | Q65: 0 | R65: 0 | S65: 0 | T65: 0 | U65: 0 | V65: 0 | AW65: 0 | AX65: 63 | AY65: =VLOOKUP(AX65,CLASIFICADOS!$B$3:$C$103,2,FALSE) -> JR SPORT | AZ65: =VLOOKUP(AY65,CLASIFICADOS!$C$3:$AW$103,2,FALSE) -> -0
A66: -6.4e-07 | B66: 79 | C66: RAIG de LLUM | D66: -0 | E66: 0 | F66: 0 | G66: 0 | H66: 0 | I66: 0 | J66: 0 | K66: 0 | L66: 0 | M66: 0 | N66: 0 | O66: 0 | P66: 0 | Q66: 0 | R66: 0 | S66: 0 | T66: 0 | U66: 0 | V66: 0 | AW66: 0 | AX66: 64 | AY66: =VLOOKUP(AX66,CLASIFICADOS!$B$3:$C$103,2,FALSE) -> JUVENTUS | AZ66: =VLOOKUP(AY66,CLASIFICADOS!$C$3:$AW$103,2,FALSE) -> -0
A67: -6.5e-07 | B67: =_xlfn.RANK.AVG(D67,$D$3:$D$103,0) -> 80 | C67: RED TANAKA | D67: =AW67+A67*ROW() -> -0 | E67: 0 | F67: 0 | G67: 0 | H67: 0 | I67: 0 | J67: 0 | K67: 0 | L67: 0 | M67: 0 | N67: 0 | O67: 0 | P67: 0 | Q67: 0 | R67: 0 | S67: 0 | T67: 0 | U67: 0 | V67: 0 | AW67: =SUM(E67:AV67) -> 0 | AX67: 65 | AY67: =VLOOKUP(AX67,CLASIFICADOS!$B$3:$C$103,2,FALSE) -> KOREAN DRAGON | AZ67: =VLOOKUP(AY67,CLASIFICADOS!$C$3:$AW$103,2,FALSE) -> -0
A68: -6.6e-07 | B68: 81 | C68: RENACER | D68: -0 | E68: 0 | F68: 0 | G68: 0 | H68: 0 | I68: 0 | J68: 0 | K68: 0 | L68: 0 | M68: 0 | N68: 0 | O68: 0 | P68: 0 | Q68: 0 | R68: 0 | S68: 0 | T68: 0 | U68: 0 | V68: 0 | AW68: 0 | AX68: =AX67+1 -> 66 | AY68: =VLOOKUP(AX68,CLASIFICADOS!$B$3:$C$103,2,FALSE) -> KUKKIKWON | AZ68: =VLOOKUP(AY68,CLASIFICADOS!$C$3:$AW$103,2,FALSE) -> -0
A69: -6.7e-07 | B69: 32 | C69: RYONG TAE | D69: 6 | E69: 0 | F69: 0 | G69: 0 | H69: 4 | I69: 0 | J69: 0 | K69: 0 | L69: 0 | M69: 0 | N69: 0 | O69: 0 | P69: 0 | Q69: 2 | R69: 0 | S69: 0 | T69: 0 | U69: 0 | V69: 0 | AW69: 6 | AX69: 67 | AY69: =VLOOKUP(AX69,CLASIFICADOS!$B$3:$C$103,2,FALSE) -> LITHE BODY | AZ69: =VLOOKUP(AY69,CLASIFICADOS!$C$3:$AW$103,2,FALSE) -> -0
A70: -6.8e-07 | B70: 16 | C70: ROJAS IRON FIRST | D70: 36 | E70: 0 | F70: 0 | G70: 4 | H70: 0 | I70: 0 | J70: 0 | K70: 0 | L70: 0 | M70: 0 | N70: 0 | O70: 8 | P70: 0 | Q70: 2 | R70: 0 | S70: 0 | T70: 10 | U70: 12 | V70: 0 | AW70: 36 | AX70: 68 | AY70: =VLOOKUP(AX70,CLASIFICADOS!$B$3:$C$103,2,FALSE) -> LOBOS | AZ70: =VLOOKUP(AY70,CLASIFICADOS!$C$3:$AW$103,2,FALSE) -> -0
A71: -6.9e-07 | B71: 5 | C71: S.D.CENTRAL | D71: 111 | E71: 8 | F71: 0 | G71: 6 | H71: 0 | I71: 10 | J71: 32 | K71: 12 | L71: 0 | M71: 0 | N71: 0 | O71: 0 | P71: 0 | Q71: 0 | R71: 0 | S71: 0 | T71: 43 | U71: 0 | V71: 0 | AW71: 111 | AX71: 69 | AY71: =VLOOKUP(AX71,CLASIFICADOS!$B$3:$C$103,2,FALSE) -> MASTER HOME | AZ71: =VLOOKUP(AY71,CLASIFICADOS!$C$3:$AW$103,2,FALSE) -> -0
A72: -7e-07 | B72: 41 | C72: SAN FRANCISCO TIGRES | D72: 2 | E72: 0 | F72: 0 | G72: 0 | H72: 2 | I72: 0 | J72: 0 | K72: 0 | L72: 0 | M72: 0 | N72: 0 | O72: 0 | P72: 0 | Q72: 0 | R72: 0 | S72: 0 | T72: 0 | U72: 0 | V72: 0 | AW72: 2 | AX72: 70 | AY72: =VLOOKUP(AX72,CLASIFICADOS!$B$3:$C$103,2,FALSE) -> MILENIUM | AZ72: =VLOOKUP(AY72,CLASIFICADOS!$C$3:$AW$103,2,FALSE) -> -0
A73: -7.1e-07 | B73: 33 | C73: SAN SEBASTIAN | D73: 6 | E73: 2 | F73: 2 | G73: 0 | H73: 2 | I73: 0 | J73: 0 | K73: 0 | L73: 0 | M73: 0 | N73: 0 | O73: 0 | P73: 0 | Q73: 0 | R73: 0 | S73: 0 | T73: 0 | U73: 0 | V73: 0 | AW73: 6 | AX73: 71 | AY73: =VLOOKUP(AX73,CLASIFICADOS!$B$3:$C$103,2,FALSE) -> MICHAY DO | AZ73: =VLOOKUP(AY73,CLASIFICADOS!$C$3:$AW$103,2,FALSE) -> -0
A74: -7.2e-07 | B74: 82 | C74: SCORPIUS | D74: -0 | E74: 0 | F74: 0 | G74: 0 | H74: 0 | I74: 0 | J74: 0 | K74: 0 | L74: 0 | M74: 0 | N74: 0 | O74: 0 | P74: 0 | Q74: 0 | R74: 0 | S74: 0 | T74: 0 | U74: 0 | V74: 0 | AW74: 0 | AX74: 72 | AY74: =VLOOKUP(AX74,CLASIFICADOS!$B$3:$C$103,2,FALSE) -> MINOTAUROS | AZ74: =VLOOKUP(AY74,CLASIFICADOS!$C$3:$AW$103,2,FALSE) -> -0
A75: -7.3e-07 | B75: 1 | C75: SEUL | D75: 172 | E75: 2 | F75: 0 | G75: 12 | H75: 10 | I75: 8 | J75: 0 | K75: 0 | L75: 6 | M75: 0 | N75: 0 | O75: 44 | P75: 0 | Q75: 12 | R75: 0 | S75: 0 | T75: 0 | U75: 58 | V75: 20 | AW75: 172 | AX75: 73 | AY75: =VLOOKUP(AX75,CLASIFICADOS!$B$3:$C$103,2,FALSE) -> MIT-TKD | AZ75: =VLOOKUP(AY75,CLASIFICADOS!$C$3:$AW$103,2,FALSE) -> -0
A76: -7.4e-07 | B76: 30 | C76: SHOGUN | D76: 8 | E76: 0 | F76: 0 | G76: 0 | H76: 0 | I76: 0 | J76: 0 | K76: 0 | L76: 0 | M76: 0 | N76: 0 | O76: 0 | P76: 0 | Q76: 2 | R76: 0 | S76: 0 | T76: 6 | U76: 0 | V76: 0 | AW76: 8 | AX76: 74 | AY76: =VLOOKUP(AX76,CLASIFICADOS!$B$3:$C$103,2,FALSE) -> PALADINES | AZ76: =VLOOKUP(AY76,CLASIFICADOS!$C$3:$AW$103,2,FALSE) -> -0
A77: -7.5e-07 | B77: 19 | C77: SIM JANG TEAM | D77: 26 | E77: 0 | F77: 0 | G77: 0 | H77: 0 | I77: 0 | J77: 6 | K77: 0 | L77: 0 | M77: 0 | N77: 0 | O77: 0 | P77: 0 | Q77: 4 | R77: 0 | S77: 0 | T77: 16 | U77: 0 | V77: 0 | AW77: 26 | AX77: 75 | AY77: =VLOOKUP(AX77,CLASIFICADOS!$B$3:$C$103,2,FALSE) -> PANDADEMON | AZ77: =VLOOKUP(AY77,CLASIFICADOS!$C$3:$AW$103,2,FALSE) -> -0
A78: -7.6e-07 | B78: 83 | C78: SURYUN | D78: -0 | E78: 0 | F78: 0 | G78: 0 | H78: 0 | I78: 0 | J78: 0 | K78: 0 | L78: 0 | M78: 0 | N78: 0 | O78: 0 | P78: 0 | Q78: 0 | R78: 0 | S78: 0 | T78: 0 | U78: 0 | V78: 0 | AW78: 0 | AX78: 76 | AY78: =VLOOKUP(AX78,CLASIFICADOS!$B$3:$C$103,2,FALSE) -> PIONEROS FORTI | AZ78: =VLOOKUP(AY78,CLASIFICADOS!$C$3:$AW$103,2,FALSE) -> -0
A79: -7.7e-07 | B79: 34 | C79: TAE BAEK ECUADOR | D79: 6 | E79: 0 | F79: 0 | G79: 0 | H79: 0 | I79: 0 | J79: 0 | K79: 0 | L79: 0 | M79: 0 | N79: 0 | O79: 0 | P79: 0 | Q79: 0 | R79: 0 | S79: 0 | T79: 6 | U79: 0 | V79: 0 | AW79: 6 | AX79: 77 | AY79: =VLOOKUP(AX79,CLASIFICADOS!$B$3:$C$103,2,FALSE) -> PIONEROS MEJIA | AZ79: =VLOOKUP(AY79,CLASIFICADOS!$C$3:$AW$103,2,FALSE) -> -0
A80: -7.8e-07 | B80: 84 | C80: TAE BAEK ECUADOR JR | D80: -0 | E80: 0 | F80: 0 | G80: 0 | H80: 0 | I80: 0 | J80: 0 | K80: 0 | L80: 0 | M80: 0 | N80: 0 | O80: 0 | P80: 0 | Q80: 0 | R80: 0 | S80: 0 | T80: 0 | U80: 0 | V80: 0 | AW80: 0 | AX80: 78 | AY80: =VLOOKUP(AX80,CLASIFICADOS!$B$3:$C$103,2,FALSE) -> PYONG YANG | AZ80: =VLOOKUP(AY80,CLASIFICADOS!$C$3:$AW$103,2,FALSE) -> -0
A81: -7.9e-07 | B81: 85 | C81: TAE KINGS | D81: -0 | E81: 0 | F81: 0 | G81: 0 | H81: 0 | I81: 0 | J81: 0 | K81: 0 | L81: 0 | M81: 0 | N81: 0 | O81: 0 | P81: 0 | Q81: 0 | R81: 0 | S81: 0 | T81: 0 | U81: 0 | V81: 0 | AW81: 0 | AX81: 79 | AY81: =VLOOKUP(AX81,CLASIFICADOS!$B$3:$C$103,2,FALSE) -> RAIG de LLUM | AZ81: =VLOOKUP(AY81,CLASIFICADOS!$C$3:$AW$103,2,FALSE) -> -0
A82: -8e-07 | B82: 17 | C82: TAE SHO KU | D82: 27 | E82: 0 | F82: 0 | G82: 6 | H82: 6 | I82: 0 | J82: 13 | K82: 0 | L82: 0 | M82: 0 | N82: 0 | O82: 0 | P82: 0 | Q82: 2 | R82: 0 | S82: 0 | T82: 0 | U82: 0 | V82: 0 | AW82: 27 | AX82: 80 | AY82: =VLOOKUP(AX82,CLASIFICADOS!$B$3:$C$103,2,FALSE) -> RED TANAKA | AZ82: =VLOOKUP(AY82,CLASIFICADOS!$C$3:$AW$103,2,FALSE) -> -0
A83: -8.1e-07 | B83: 22 | C83: TAE DO ACADEMY | D83: 20 | E83: 0 | F83: 0 | G83: 4 | H83: 8 | I83: 0 | J83: 0 | K83: 0 | L83: 0 | M83: 0 | N83: 0 | O83: 0 | P83: 0 | Q83: 8 | R83: 0 | S83: 0 | T83: 0 | U83: 0 | V83: 0 | AW83: 20 | AX83: 81 | AY83: =VLOOKUP(AX83,CLASIFICADOS!$B$3:$C$103,2,FALSE) -> RENACER | AZ83: =VLOOKUP(AY83,CLASIFICADOS!$C$3:$AW$103,2,FALSE) -> -0
A84: -8.2e-07 | B84: 13 | C84: TAEKWONDO TRAINING CENTER | D84: 38 | E84: 0 | F84: 0 | G84: 0 | H84: 6 | I84: 0 | J84: 0 | K84: 0 | L84: 0 | M84: 0 | N84: 0 | O84: 0 | P84: 0 | Q84: 2 | R84: 0 | S84: 30 | T84: 0 | U84: 0 | V84: 0 | AW84: 38 | AX84: 82 | AY84: =VLOOKUP(AX84,CLASIFICADOS!$B$3:$C$103,2,FALSE) -> SCORPIUS | AZ84: =VLOOKUP(AY84,CLASIFICADOS!$C$3:$AW$103,2,FALSE) -> -0
A85: -8.3e-07 | B85: 86 | C85: TAEKWONDO JITAE | D85: -0 | E85: 0 | F85: 0 | G85: 0 | H85: 0 | I85: 0 | J85: 0 | K85: 0 | L85: 0 | M85: 0 | N85: 0 | O85: 0 | P85: 0 | Q85: 0 | R85: 0 | S85: 0 | T85: 0 | U85: 0 | V85: 0 | AW85: 0 | AX85: 83 | AY85: =VLOOKUP(AX85,CLASIFICADOS!$B$3:$C$103,2,FALSE) -> SURYUN | AZ85: =VLOOKUP(AY85,CLASIFICADOS!$C$3:$AW$103,2,FALSE) -> -0
A86: -8.4e-07 | B86: 87 | C86: TAEKWONDO JUCARO | D86: -0 | E86: 0 | F86: 0 | G86: 0 | H86: 0 | I86: 0 | J86: 0 | K86: 0 | L86: 0 | M86: 0 | N86: 0 | O86: 0 | P86: 0 | Q86: 0 | R86: 0 | S86: 0 | T86: 0 | U86: 0 | V86: 0 | AW86: 0 | AX86: 84 | AY86: =VLOOKUP(AX86,CLASIFICADOS!$B$3:$C$103,2,FALSE) -> TAE BAEK ECUADOR JR | AZ86: =VLOOKUP(AY86,CLASIFICADOS!$C$3:$AW$103,2,FALSE) -> -0
A87: -8.5e-07 | B87: 42 | C87: TAEKWONDO WOONG | D87: 2 | E87: 0 | F87: 0 | G87: 0 | H87: 0 | I87: 0 | J87: 0 | K87: 0 | L87: 0 | M87: 0 | N87: 0 | O87: 0 | P87: 0 | Q87: 2 | R87: 0 | S87: 0 | T87: 0 | U87: 0 | V87: 0 | AW87: 2 | AX87: 85 | AY87: =VLOOKUP(AX87,CLASIFICADOS!$B$3:$C$103,2,FALSE) -> TAE KINGS | AZ87: =VLOOKUP(AY87,CLASIFICADOS!$C$3:$AW$103,2,FALSE) -> -0
A88: -8.6e-07 | B88: 88 | C88: TEAM TAUROS TAEKWONDO | D88: -0 | E88: 0 | F88: 0 | G88: 0 | H88: 0 | I88: 0 | J88: 0 | K88: 0 | L88: 0 | M88: 0 | N88: 0 | O88: 0 | P88: 0 | Q88: 0 | R88: 0 | S88: 0 | T88: 0 | U88: 0 | V88: 0 | AW88: 0 | AX88: 86 | AY88: =VLOOKUP(AX88,CLASIFICADOS!$B$3:$C$103,2,FALSE) -> TAEKWONDO JITAE | AZ88: =VLOOKUP(AY88,CLASIFICADOS!$C$3:$AW$103,2,FALSE) -> -0
A89: -8.7e-07 | B89: 89 | C89: TEAM VENCEDORES | D89: -0 | E89: 0 | F89: 0 | G89: 0 | H89: 0 | I89: 0 | J89: 0 | K89: 0 | L89: 0 | M89: 0 | N89: 0 | O89: 0 | P89: 0 | Q89: 0 | R89: 0 | S89: 0 | T89: 0 | U89: 0 | V89: 0 | AW89: 0 | AX89: 87 | AY89: =VLOOKUP(AX89,CLASIFICADOS!$B$3:$C$103,2,FALSE) -> TAEKWONDO JUCARO | AZ89: =VLOOKUP(AY89,CLASIFICADOS!$C$3:$AW$103,2,FALSE) -> -0
A90: -8.8e-07 | B90: 90 | C90: TEKKEN | D90: -0 | E90: 0 | F90: 0 | G90: 0 | H90: 0 | I90: 0 | J90: 0 | K90: 0 | L90: 0 | M90: 0 | N90: 0 | O90: 0 | P90: 0 | Q90: 0 | R90: 0 | S90: 0 | T90: 0 | U90: 0 | V90: 0 | AW90: 0 | AX90: 88 | AY90: =VLOOKUP(AX90,CLASIFICADOS!$B$3:$C$103,2,FALSE) -> TEAM TAUROS TAEKWONDO | AZ90: =VLOOKUP(AY90,CLASIFICADOS!$C$3:$AW$103,2,FALSE) -> -0
A91: -8.9e-07 | B91: 43 | C91: TOTAL KOMBAT | D91: 2 | E91: 0 | F91: 0 | G91: 0 | H91: 0 | I91: 0 | J91: 0 | K91: 0 | L91: 0 | M91: 0 | N91: 0 | O91: 0 | P91: 0 | Q91: 2 | R91: 0 | S91: 0 | T91: 0 | U91: 0 | V91: 0 | AW91: 2 | AX91: 89 | AY91: =VLOOKUP(AX91,CLASIFICADOS!$B$3:$C$103,2,FALSE) -> TEAM VENCEDORES | AZ91: =VLOOKUP(AY91,CLASIFICADOS!$C$3:$AW$103,2,FALSE) -> -0
A92: -9e-07 | B92: 91 | C92: U SAN FRANCISCO USFQ | D92: -0 | E92: 0 | F92: 0 | G92: 0 | H92: 0 | I92: 0 | J92: 0 | K92: 0 | L92: 0 | M92: 0 | N92: 0 | O92: 0 | P92: 0 | Q92: 0 | R92: 0 | S92: 0 | T92: 0 | U92: 0 | V92: 0 | AW92: 0 | AX92: 90 | AY92: =VLOOKUP(AX92,CLASIFICADOS!$B$3:$C$103,2,FALSE) -> TEKKEN | AZ92: =VLOOKUP(AY92,CLASIFICADOS!$C$3:$AW$103,2,FALSE) -> -0
A93: -9.1e-07 | B93: 92 | C93: UNIVERSAL | D93: -0 | E93: 0 | F93: 0 | G93: 0 | H93: 0 | I93: 0 | J93: 0 | K93: 0 | L93: 0 | M93: 0 | N93: 0 | O93: 0 | P93: 0 | Q93: 0 | R93: 0 | S93: 0 | T93: 0 | U93: 0 | V93: 0 | AW93: 0 | AX93: 91 | AY93: =VLOOKUP(AX93,CLASIFICADOS!$B$3:$C$103,2,FALSE) -> U SAN FRANCISCO USFQ | AZ93: =VLOOKUP(AY93,CLASIFICADOS!$C$3:$AW$103,2,FALSE) -> -0
A94: -9.2e-07 | B94: 93 | C94: UNIVERSIDAD CENTRAL (CAMU) | D94: -0 | E94: 0 | F94: 0 | G94: 0 | H94: 0 | I94: 0 | J94: 0 | K94: 0 | L94: 0 | M94: 0 | N94: 0 | O94: 0 | P94: 0 | Q94: 0 | R94: 0 | S94: 0 | T94: 0 | U94: 0 | V94: 0 | AW94: 0 | AX94: 92 | AY94: =VLOOKUP(AX94,CLASIFICADOS!$B$3:$C$103,2,FALSE) -> UNIVERSAL | AZ94: =VLOOKUP(AY94,CLASIFICADOS!$C$3:$AW$103,2,FALSE) -> -0
A95: -9.3e-07 | B95: 94 | C95: UNIVERSIDAD HIMISFERIOS | D95: -0 | E95: 0 | F95: 0 | G95: 0 | H95: 0 | I95: 0 | J95: 0 | K95: 0 | L95: 0 | M95: 0 | N95: 0 | O95: 0 | P95: 0 | Q95: 0 | R95: 0 | S95: 0 | T95: 0 | U95: 0 | V95: 0 | AW95: =SUM(E95:AV95) -> 0 | AX95: 93 | AY95: =VLOOKUP(AX95,CLASIFICADOS!$B$3:$C$103,2,FALSE) -> UNIVERSIDAD CENTRAL (CAMU) | AZ95: =VLOOKUP(AY95,CLASIFICADOS!$C$3:$AW$103,2,FALSE) -> -0
A96: -9.4e-07 | B96: 95 | C96: VALLE | D96: -0 | E96: 0 | F96: 0 | G96: 0 | H96: 0 | I96: 0 | J96: 0 | K96: 0 | L96: 0 | M96: 0 | N96: 0 | O96: 0 | P96: 0 | Q96: 0 | R96: 0 | S96: 0 | T96: 0 | U96: 0 | V96: 0 | AW96: 0 | AX96: 94 | AY96: =VLOOKUP(AX96,CLASIFICADOS!$B$3:$C$103,2,FALSE) -> UNIVERSIDAD HIMISFERIOS | AZ96: =VLOOKUP(AY96,CLASIFICADOS!$C$3:$AW$103,2,FALSE) -> -0
A97: -9.5e-07 | B97: 96 | C97: VEMON | D97: -0 | E97: 0 | F97: 0 | G97: 0 | H97: 0 | I97: 0 | J97: 0 | K97: 0 | L97: 0 | M97: 0 | N97: 0 | O97: 0 | P97: 0 | Q97: 0 | R97: 0 | S97: 0 | T97: 0 | U97: 0 | V97: 0 | AW97: 0 | AX97: 95 | AY97: =VLOOKUP(AX97,CLASIFICADOS!$B$3:$C$103,2,FALSE) -> VALLE | AZ97: =VLOOKUP(AY97,CLASIFICADOS!$C$3:$AW$103,2,FALSE) -> -0
A98: -9.6e-07 | B98: 97 | C98: VILL GYM | D98: -0 | E98: 0 | F98: 0 | G98: 0 | H98: 0 | I98: 0 | J98: 0 | K98: 0 | L98: 0 | M98: 0 | N98: 0 | O98: 0 | P98: 0 | Q98: 0 | R98: 0 | S98: 0 | T98: 0 | U98: 0 | V98: 0 | AW98: 0 | AX98: 96 | AY98: =VLOOKUP(AX98,CLASIFICADOS!$B$3:$C$103,2,FALSE) -> VEMON | AZ98: =VLOOKUP(AY98,CLASIFICADOS!$C$3:$AW$103,2,FALSE) -> -0
A99: -9.7e-07 | B99: 10 | C99: YONG TIGER | D99: 55 | E99: 0 | F99: 0 | G99: 8 | H99: 2 | I99: 6 | J99: 6 | K99: 0 | L99: 0 | M99: 0 | N99: 0 | O99: 8 | P99: 0 | Q99: 4 | R99: 0 | S99: 0 | T99: 14 | U99: 7 | V99: 0 | AW99: 55 | AX99: 97 | AY99: =VLOOKUP(AX99,CLASIFICADOS!$B$3:$C$103,2,FALSE) -> VILL GYM | AZ99: =VLOOKUP(AY99,CLASIFICADOS!$C$3:$AW$103,2,FALSE) -> -0
A100: -9.8e-07 | B100: 98 | D100: -0 | AW100: 0 | AX100: 98 | AY100: =VLOOKUP(AX100,CLASIFICADOS!$B$3:$C$103,2,FALSE) -> 0 | AZ100: =VLOOKUP(AY100,CLASIFICADOS!$C$3:$AW$103,2,FALSE) -> 
A101: -9.9e-07 | B101: 99 | D101: -0 | AW101: 0 | AX101: 99 | AY101: =VLOOKUP(AX101,CLASIFICADOS!$B$3:$C$103,2,FALSE) -> 0 | AZ101: =VLOOKUP(AY101,CLASIFICADOS!$C$3:$AW$103,2,FALSE) -> 
A102: -1e-06 | B102: 100 | D102: -0 | AW102: =SUM(E102:AV102) -> 0 | AX102: 100 | AY102: =VLOOKUP(AX102,CLASIFICADOS!$B$3:$C$103,2,FALSE) -> 0 | AZ102: =VLOOKUP(AY102,CLASIFICADOS!$C$3:$AW$103,2,FALSE) -> 
A103: -1.01e-06 | B103: 101 | D103: -0 | AW103: =SUM(E103:AV103) -> 0 | AX103: 101 | AY103: =VLOOKUP(AX103,CLASIFICADOS!$B$3:$C$103,2,FALSE) -> 0 | AZ103: =VLOOKUP(AY103,CLASIFICADOS!$C$3:$AW$103,2,FALSE) -> 
